Workbook

Sheet Special Rates 2025-26
E4: 2025/26 Calculation of Special School Funding Rates
B8: DfE | E8: =IFERROR(VLOOKUP(DFENUM,DATA!B5:C28,2,0),"") -> 
B11: Section 1 - Commissioned Place numbers
B13: Academic Year | C13: Pre-16 | D13: Post-16 | E13: Weekday Residential | F13: Weekend Residential | H13: High Needs Place numbers as agreed annually with the Local Authority's SEN team
B15: 2024/25 | C15: =IFERROR(VLOOKUP(DFENUM,DATA!B5:K28,3,0),0) -> 0 | D15: =IFERROR(VLOOKUP(DFENUM,DATA!B5:K28,5,0),0) -> 0 | E15: =IFERROR(VLOOKUP(DFENUM,DATA!B5:K28,7,0),0) -> 0 | F15: =IFERROR(VLOOKUP(DFENUM,DATA!B5:K28,9,0),0) -> 0 | H15: Place numbers 2024-25 agreed November 2023
B17: 2025/26 | C17: =IFERROR(VLOOKUP(DFENUM,DATA!B5:K28,4,0),0) -> 0 | D17: =IFERROR(VLOOKUP(DFENUM,DATA!B5:K28,6,0),0) -> 0 | E17: =IFERROR(VLOOKUP(DFENUM,DATA!B5:K28,8,0),0) -> 0 | F17: =IFERROR(VLOOKUP(DFENUM,DATA!B5:K28,10,0),0) -> 0 | H17: Place numbers 2025-26 agreed November 2024
B19: Movement | C19: =C17-C15 -> 0 | D19: =D17-D15 -> 0 | E19: =E17-E15 -> 0 | F19: =F17-F15 -> 0
L23: Day Pupil | P23: Weekday | S23: Weekend
B24: Section 2 - Calculation of funding rate for April 2025 to March 2026
J25: MLD & SLCN | K25: SEMH | L25: SLD | M25: PD & PMLD | N25: ASD | P25: PD & PMLD | Q25: ASD | S25: PD & PMLD
A27: (A) | B27: April 2025 to August 2025 (Formula only excluding MFG)- | J27: =IFERROR(VLOOKUP(DFENUM,DATA!B5:AA28,11,0),0) -> 0 | K27: =IFERROR(VLOOKUP(DFENUM,DATA!B5:AA28,17,0),0) -> 0 | L27: =IFERROR(VLOOKUP(DFENUM,DATA!B5:AA28,20,0),0) -> 0 | M27: =IFERROR(VLOOKUP(DFENUM,DATA!B5:AA28,23,0),0) -> 0 | N27: =IFERROR(VLOOKUP(DFENUM,DATA!B5:AA28,14,0),0) -> 0 | P27: =IFERROR(VLOOKUP(DFENUM,DATA!B5:BX28,50,0),0) -> 0 | Q27: =IFERROR(VLOOKUP(DFENUM,DATA!B5:BX28,47,0),0) -> 0 | S27: =IFERROR(VLOOKUP(DFENUM,DATA!B5:BX28,53,0),0) -> 0
B28: Based on Academic Year 2024 to 2025. Data taken from 2024-25 Funding Rates Calculation.
A30: (B) | B30: September 2025 to March 2026 (Formula only excluding MFG) | J30: =IFERROR(VLOOKUP(DFENUM,DATA!B5:AA28,12,0),0) -> 0 | K30: =IFERROR(VLOOKUP(DFENUM,DATA!B5:AA28,18,0),0) -> 0 | L30: =IFERROR(VLOOKUP(DFENUM,DATA!B5:AA28,21,0),0) -> 0 | M30: =IFERROR(VLOOKUP(DFENUM,DATA!B5:AA28,24,0),0) -> 0 | N30: =IFERROR(VLOOKUP(DFENUM,DATA!B5:AA28,15,0),0) -> 0 | P30: =IFERROR(VLOOKUP(DFENUM,DATA!B5:BX28,52,0),0) -> 0 | Q30: =IFERROR(VLOOKUP(DFENUM,DATA!B5:BX28,49,0),0) -> 0 | S30: =IFERROR(VLOOKUP(DFENUM,DATA!B5:BX28,55,0),0) -> 0
B31: Based on Academic Year 2025 to 2026. See section 3 for calculation.
A33: (C) | B33: April 2025 to March 2026 | I33: = (A) X 5/12 | J33: =(J27*5/12)+(J30*7/12) -> 0 | K33: =(K27*5/12)+(K30*7/12) -> 0 | L33: =(L27*5/12)+(L30*7/12) -> 0 | M33: =(M27*5/12)+(M30*7/12) -> 0 | N33: =(N27*5/12)+(N30*7/12) -> 0 | P33: =IF(DFENUM=7073,P27,(P27*5/12)+(P30*7/12)) -> 0 | Q33: =IF(DFENUM=7073,Q27,(Q27*5/12)+(Q30*7/12)) -> 0 | S33: =IF(DFENUM=7073,S27,(S27*5/12)+(S30*7/12)) -> 0
B34: Based on Academic Year 2024 to 2025 (April 2025 to August 2025) 5/12's + | I34: +
B35: Academic Year 2025 to 2026 (September 2025 to March 2026) 7/12's | I35: (B) X 7/12
A37: (D) | B37: Final funding rate for financial Year 2024 to 2025 | J37: =IFERROR(VLOOKUP(DFENUM,DATA!$B:$CG,13,0),0) -> 0 | K37: =IFERROR(VLOOKUP(DFENUM,DATA!$B:$CG,19,0),0) -> 0 | L37: =IFERROR(VLOOKUP(DFENUM,DATA!$B:$CG,22,0),0) -> 0 | M37: =IFERROR(VLOOKUP(DFENUM,DATA!$B:$CG,25,0),0) -> 0 | N37: =IFERROR(VLOOKUP(DFENUM,DATA!$B:$CG,16,0),0) -> 0 | P37: =IFERROR(VLOOKUP(DFENUM,DATA!$B:$CG,51,0),0) -> 0 | Q37: =IFERROR(VLOOKUP(DFENUM,DATA!$B:$CG,48,0),0) -> 0 | S37: =IFERROR(VLOOKUP(DFENUM,DATA!$B:$CG,54,0),0) -> 0
A38: (E) | B38: MFG rate (D) X 100% | J38: =mldlastyear*1 -> 0 | K38: =besdlastyear*1 -> 0 | L38: =sldlastyear*1 -> 0 | M38: =pdlastyear*1 -> 0 | N38: =asdlastyear*1 -> 0 | P38: =pdweekdaylastyear*1 -> 0 | Q38: =asdweekdaylastyear*1 -> 0 | S38: =pdweekendlastyear*1 -> 0
J40: MLD & SLCN | K40: SEMH | L40: SLD | M40: PD & PMLD | N40: ASD | P40: PD & PMLD | Q40: ASD | S40: PD & PMLD
A41: (F) | B41: Final Rate (Greater of Formula (C) or MFG E)) | G41: Formula (C) | J41: =J33 -> 0 | K41: =K33 -> 0 | L41: =L33 -> 0 | M41: =M33 -> 0 | N41: =N33 -> 0 | P41: =P33 -> 0 | Q41: =Q33 -> 0 | S41: =S33 -> 0
G42: MFG funding rate (E) | J42: =J38 -> 0 | K42: =K38 -> 0 | L42: =L38 -> 0 | M42: =M38 -> 0 | N42: =N38 -> 0 | P42: =P38 -> 0 | Q42: =Q38 -> 0 | S42: =S38 -> 0
G43: Amount of MFG if (E) is greater than (C) | J43: =IF(J41>J42,0,J42-J41) -> 0 | K43: =IF(K41>K42,0,K42-K41) -> 0 | L43: 0 | M43: 0 | N43: 0 | P43: =IF(P41>P42,0,P42-P41) -> 0 | Q43: 0 | S43: =IF(S41>S42,0,S42-S41) -> 0
G44: Final Rate formula plus MFG | J44: =SUM(J41,J43) -> 0 | K44: =SUM(K41,K43) -> 0 | L44: =SUM(L41,L43) -> 0 | M44: =SUM(M41,M43) -> 0 | N44: =SUM(N41,N43) -> 0 | P44: =SUM(P41,P43) -> 0 | Q44: =SUM(Q41,Q43) -> 0 | S44: =SUM(S41,S43) -> 0
A45: (G) | B45: Place Plus Breakdown
G46: Element 1 & 2 | J46: 10000 | K46: 10000 | L46: 10000 | M46: 10000 | N46: 10000 | P46: =IF($P$44=0,0,10000) -> 0 | Q46: =IF($Q$44=0,0,10000) -> 0 | S46: =IF($S$44=0,0,10000) -> 0
G47: Element 3 | J47: =J44-J46 -> -10000 | K47: =K44-K46 -> -10000 | L47: -10000 | M47: -10000 | N47: -10000 | P47: =P44-P46 -> 0 | Q47: 0 | S47: =S44-S46 -> 0
G48: Total rate | J48: =SUM(J46:J47) -> 0 | K48: =SUM(K46:K47) -> 0 | L48: =SUM(L46:L47) -> 0 | M48: =SUM(M46:M47) -> 0 | N48: =SUM(N46:N47) -> 0 | P48: =SUM(P46:P47) -> 0 | Q48: =SUM(Q46:Q47) -> 0 | S48: =SUM(S46:S47) -> 0
B49: Section 3 - Pupil Led Elements
J50: MLD & SLCN | K50: SEMH | L50: SLD | M50: PD & PMLD | N50: ASD | P50: PD & PMLD | Q50: ASD | S50: PD & PMLD
B51: Day Rate | J51: 10278.79759 | K51: 17020.59227 | L51: 14757.83968 | M51: 22222.13545 | N51: 17020.59227 | P51: =IF($P$30=0,0,M51) -> 0 | Q51: =IF($Q$30=0,0,N51) -> 0 | S51: =IF($S$33=0,0,M51) -> 0
B52: Adjusted Rate due to School type (see note) | J52: 0 | K52: 0 | L52: 0 | M52: 0 | N52: =IFERROR(VLOOKUP(DFENUM,DATA!B5:BE28,27,0),0)-N51 -> -17020.59227 | P52: 0 | Q52: =IF($Q$30=0,0,N52) -> 0 | S52: 0
B53: Residential Weekday rate | J53: 0 | K53: 0 | L53: 0 | M53: 0 | N53: 0 | P53: =IF($P$30=0,0,IFERROR(VLOOKUP(DFENUM,DATA!B5:BX26,56,0),0)) -> 0 | Q53: =IF($Q$30=0,0,IFERROR(VLOOKUP(DFENUM,DATA!B5:BX26,56,0),0)) -> 0 | S53: =IF($S$33=0,0,IFERROR(VLOOKUP(DFENUM,DATA!B5:BX26,56,0),0)) -> 0
B54: Residential Weekend rate | J54: 0 | K54: 0 | L54: 0 | M54: 0 | N54: 0 | P54: 0 | Q54: 0 | S54: =IF($S$33=0,0,IFERROR(VLOOKUP(DFENUM,DATA!B5:BX26,57,0),0)) -> 0
B55: Subsidy on day places (catering) | J55: 122.7502769 | K55: =$J55 -> 122.7502769 | L55: =$J55 -> 122.7502769 | M55: 122.7502769 | N55: 122.7502769 | P55: =IF($P$30=0,0,M55) -> 0 | Q55: =IF($Q$30=0,0,N55) -> 0 | S55: =IF($S$33=0,0,P55) -> 0
B56: Lunch Grant | J56: 12.73823628 | K56: =$J56 -> 12.73823628 | L56: 12.73823628 | M56: 12.73823628 | N56: 12.73823628 | P56: =IF($P$30=0,0,M56) -> 0 | Q56: =IF($Q$30=0,0,N56) -> 0 | S56: =IF($S$33=0,0,P56) -> 0
B57: Specialist Schools Funding | J57: 105.7052542 | K57: 105.7052542 | L57: 105.7052542 | M57: 105.7052542 | N57: 105.7052542 | P57: =IF($P$30=0,0,M57) -> 0 | Q57: =IF($Q$30=0,0,N57) -> 0 | S57: 0
B58: Further Delegation | J58: 50.43775678 | K58: 50.43775678 | L58: 50.43775678 | M58: 50.43775678 | N58: 50.43775678 | P58: =IF($P$30=0,0,M58) -> 0 | Q58: =IF($Q$30=0,0,N58) -> 0 | S58: 0
B59: Residential Weekday Places Catering | J59: 0 | K59: 0 | L59: 0 | M59: 0 | N59: 0 | P59: 0 | Q59: 0 | S59: 0
B60: Residential Weekend Places Catering | J60: 0 | K60: 0 | L60: 0 | M60: 0 | N60: 0 | P60: 0 | Q60: 0 | S60: 0
B61: London Fringe Day Pupil | J61: =IFERROR(VLOOKUP(DFENUM,DATA!B5:BE28,29,0),0) -> 0 | K61: =IFERROR(VLOOKUP(DFENUM,DATA!B5:BE28,30,0),0) -> 0 | L61: =IFERROR(VLOOKUP(DFENUM,DATA!B5:BE28,31,0),0) -> 0 | M61: =IFERROR(VLOOKUP(DFENUM,DATA!B5:BE28,32,0),0) -> 0 | N61: =IFERROR(VLOOKUP(DFENUM,DATA!B5:BE28,33,0),0) -> 0 | P61: 0 | Q61: 0 | S61: 0
B62: London Fringe Weekday Residential Pupil | J62: 0 | K62: 0 | L62: 0 | M62: 0 | N62: 0 | P62: =IF($P$30=0,0,IFERROR(VLOOKUP(DFENUM,DATA!B5:BX28,58,0),0)) -> 0 | Q62: =IF($Q$30=0,0,IFERROR(VLOOKUP(DFENUM,DATA!B5:BX28,58,0),0)) -> 0 | S62: 0
B63: London Fringe Weekend Residential Pupil | J63: 0 | K63: 0 | L63: 0 | M63: 0 | N63: 0 | P63: 0 | Q63: 0 | S63: =IF($S$33=0,0,IFERROR(VLOOKUP(DFENUM,DATA!B5:BX28,59,0),0)) -> 0
B65: Rate for Pupil Led Elements | J65: =SUM(J51:J64) -> 10570.42912 | K65: =SUM(K51:K64) -> 17312.2238 | L65: =SUM(L51:L64) -> 15049.47121 | M65: =SUM(M51:M64) -> 22513.76697 | N65: =SUM(N51:N64) -> 291.6315241 | P65: =SUM(P51:P64) -> 0 | Q65: =SUM(Q51:Q64) -> 0 | S65: =SUM(S51:S64) -> 0
B67: Section 4 - School Led Elements
L68: Need Type
F69: Units | G69: Rate | H69: Total | I69: Places | J69: MLD & SLCN | K69: SEMH | L69: SLD | M69: PD & PMLD | N69: ASD | P69: PD & PMLD | Q69: ASD | S69: PD & PMLD
B70: Lump Sum Day | F70: =IF(DFENUM>0,1,0) -> 0 | G70: 401058.7371 | H70: =F70*G70 -> 0 | I70: =$C$17+$D$17 -> 0 | J70: =IF(I70=0,0,H70/I70) -> 0 | K70: =$J70 -> 0 | L70: =$J70 -> 0 | M70: 0 | N70: 0 | P70: =IF($P$30=0,0,M70) -> 0 | Q70: =IF($Q$30=0,0,N70) -> 0 | S70: =IF($S$33=0,0,M70) -> 0
B71: Lump Sum Catering Day | F71: =IF(DFENUM>0,1,0) -> 0 | G71: 2316.04296 | H71: =F71*G71 -> 0 | I71: =$C$17+$D$17 -> 0 | J71: =IF(I71=0,0,H71/I71) -> 0 | K71: =$J71 -> 0 | L71: 0 | M71: 0 | N71: 0 | P71: 0 | Q71: 0 | S71: =IF($S$33=0,0,M71) -> 0
B72: Specialist Schools Funding- Lump Sum | F72: =IF(DFENUM>0,1,0) -> 0 | G72: 13685.16009 | H72: 0 | I72: 0 | J72: 0 | K72: 0 | L72: 0 | M72: 0 | N72: 0 | P72: 0 | Q72: 0 | S72: 0
B73: Free Mid-day Meals | F73: =IFERROR(VLOOKUP(DFENUM,DATA!$B$5:$BE$28,43,0),0)*I73 -> 0 | G73: 480.5789141 | H73: 0 | I73: 0 | J73: 0 | K73: 0 | L73: 0 | M73: 0 | N73: 0 | P73: 0 | Q73: 0 | S73: 0
B74: Gross Day Floor Area (m2) | F74: =IFERROR(VLOOKUP(DFENUM,DATA!$B$5:$BE$28,37,0),0) -> 0 | G74: 34.74064182 | H74: =F74*G74 -> 0 | I74: 0 | J74: 0 | K74: 0 | L74: 0 | M74: 0 | N74: 0 | P74: 0 | Q74: 0 | S74: 0
B75: Grounds Site Area (hectares) | F75: =IFERROR(VLOOKUP(DFENUM,DATA!$B$5:$BE$28,40,0),0) -> 0 | G75: 1218.238597 | H75: 0 | I75: 0 | J75: 0 | K75: 0 | L75: 0 | M75: 0 | N75: 0 | P75: 0 | Q75: 0 | S75: 0
B76: Rentals | F76: =IF(IFERROR(VLOOKUP(DFENUM,DATA!$B$5:$BE$28,41,0),0)>0,1,0) -> 0 | G76: =IFERROR(VLOOKUP(DFENUM,DATA!$B$5:$BE$28,41,0),0) -> 0 | H76: 0 | I76: 0 | J76: 0 | K76: 0 | L76: 0 | M76: 0 | N76: 0 | P76: 0 | Q76: 0 | S76: 0
B77: Hydrotherapy Pool | F77: =IFERROR(VLOOKUP(DFENUM,DATA!$B$5:$BE$28,42,0),0) -> 0 | G77: 5790.107399 | H77: 0 | I77: 0 | J77: 0 | K77: 0 | L77: 0 | M77: 0 | N77: 0 | P77: 0 | Q77: 0 | S77: 0
B78: Split site- Band 1 | F78: =IFERROR(VLOOKUP(DFENUM,DATA!$B$5:$BE$28,45,0),0) -> 0 | G78: 5069.818039 | H78: 0 | I78: 0 | J78: 0 | K78: 0 | L78: 0 | M78: 0 | N78: 0 | P78: 0 | Q78: 0 | S78: 0
B79: Split site - Band 2 | F79: =IFERROR(VLOOKUP(DFENUM,DATA!$B$5:$BE$28,46,0),0) -> 0 | G79: 44499.29141 | H79: 0 | I79: 0 | J79: 0 | K79: 0 | L79: 0 | M79: 0 | N79: 0 | P79: 0 | Q79: 0 | S79: 0
B80: Residential Floor Area Weekday (m2) | F80: =IFERROR(VLOOKUP(DFENUM,DATA!$B$5:$BE$28,38,0),0) -> 0 | G80: 57.90054418 | H80: 0 | I80: =E17 -> 0 | J80: 0 | K80: 0 | L80: 0 | M80: 0 | N80: 0 | P80: =IF($P$30=0,0,((F80*G80)/I80)) -> 0 | Q80: =IF($Q$30=0,0,((F80*G80)/I80)) -> 0 | S80: =IF($S$33=0,0,((F80*G80)/I80)) -> 0
B81: Residential Floor Area Weekend (m2) | F81: =IFERROR(VLOOKUP(DFENUM,DATA!$B$5:$BE$28,39,0),0) -> 0 | G81: 75.27128984 | H81: 0 | I81: =E17 -> 0 | J81: 0 | K81: 0 | L81: 0 | M81: 0 | N81: 0 | P81: =IF($P$30=0,0,((F81*G81)/I81)) -> 0 | Q81: =IF($Q$30=0,0,((F81*G81)/I81)) -> 0 | S81: =IF($S$33=0,0,((F81*G81)/I81)) -> 0
B82: Lump Sum Residential | F82: =IF(SUM(P33:S33)>0,1,0) -> 0 | G82: 189249.6603 | H82: 0 | I82: =E17 -> 0 | J82: 0 | K82: 0 | L82: 0 | M82: 0 | N82: 0 | P82: =IF($P$30=0,0,((F82*G82)/I82)) -> 0 | Q82: =IF($Q$30=0,0,((F82*G82)/I82)) -> 0 | S82: =IF($S$33=0,0,((F82*G82)/I82)) -> 0
B83: London Fringe Day Pupils | F83: =IFERROR(VLOOKUP(DFENUM,DATA!$B$5:$BE$28,44,0),0) -> 0 | G83: 4463.304289 | H83: 0 | I83: =$C$17+$D$17 -> 0 | J83: 0 | K83: 0 | L83: 0 | M83: 0 | N83: 0 | P83: 0 | Q83: 0 | S83: 0
B84: London Fringe Residential Pupils | F84: 0 | G84: 2795.753358 | H84: 0 | I84: =E17 -> 0 | J84: 0 | K84: 0 | L84: 0 | M84: 0 | N84: 0 | P84: =IF($P$30=0,0,IFERROR(VLOOKUP(DFENUM,DATA!B5:BX28,60,0),0)) -> 0 | Q84: =IF($Q$30=0,0,IFERROR(VLOOKUP(DFENUM,DATA!B5:BX28,60,0),0)) -> 0 | S84: =IF($S$33=0,0,IFERROR(VLOOKUP(DFENUM,DATA!B5:BX28,61,0),0)) -> 0
B86: Rate for School Led Elements | J86: =SUM(J70:J85) -> 0 | K86: =SUM(K70:K85) -> 0 | L86: =SUM(L70:L85) -> 0 | M86: =SUM(M70:M85) -> 0 | N86: =SUM(N70:N85) -> 0 | P86: =SUM(P70:P85) -> 0 | Q86: =SUM(Q70:Q85) -> 0 | S86: =SUM(S70:S85) -> 0
L90: Need Type
B91: Total Formula Rate | J91: MLD & SLCN | K91: SEMH | L91: SLD | M91: PD & PMLD | N91: ASD | P91: PD & PMLD | Q91: ASD | S91: PD & PMLD
J92: =J65+J86 -> 10570.42912 | K92: =K65+K86 -> 17312.2238 | L92: =L65+L86 -> 15049.47121 | M92: =M65+M86 -> 22513.76697 | N92: =N65+N86 -> 291.6315241 | P92: =P65+P86 -> 0 | Q92: =Q65+Q86 -> 0 | S92: =S65+S86 -> 0
J93: =ROUND(J92-mldnew,1) -> 10570.4 | K93: =ROUND(K92-besdnew,1) -> 17312.2 | L93: =ROUND(L92-sldnew,1) -> 15049.5 | M93: =ROUND(M92-pdnew,1) -> 22513.8 | N93: =ROUND(N92-asdnew,1) -> 291.6 | P93: =ROUND(P92-pdweekdaynew,1) -> 0 | Q93: =ROUND(Q92-asdweekdaynew,1) -> 0 | S93: =ROUND(S92-pdweekendnew,1) -> 0
N94: =IF(AND(J93=0,K93=0,L93=0,M93=0,N93=0),"OK","ERROR") -> ERROR | S94: =IF(AND(P93=0,Q93=0,S93=0),"OK","ERROR") -> OK
S95: =IF(AND(N94="OK",S94="OK"),"OK","ERROR") -> ERROR
B97: Note
B98: ASD
B99: - All ASD pupils in Stone Bay are funded at ASD2
B100: - 10% of all ASD places in C & I and PSCN Special Schools are funded at ASD2
B108: Section 5 - Analysis of Rate Changes
D111: 2024/25 Financial Year | F111: 2025/26 Financial Year | H111: Movement £ | I111: Movement %
B112: Pupil Led Elements
C113: MLD & SLCN | E113: =IFERROR(VLOOKUP(DFENUM,DATA!$B:$CG,63,0),"") ->  | G113: =IFERROR(VLOOKUP(DFENUM,DATA!$B:$CG,74,0),"") ->  | H113: =IFERROR(G113-E113,"") ->  | I113: =IFERROR(H113/E113,"") -> 
C114: SEMH | E114: =IFERROR(VLOOKUP(DFENUM,DATA!B:CG,64,0),"") ->  | G114: =IFERROR(VLOOKUP(DFENUM,DATA!$B:$CG,75,0),"") ->  | H114: =IFERROR(G114-E114,"") ->  | I114: =IFERROR(H114/E114,"") -> 
C115: SLD | E115: =IFERROR(VLOOKUP(DFENUM,DATA!B:CG,65,0),"") ->  | G115: =IFERROR(VLOOKUP(DFENUM,DATA!$B:$CG,76,0),"") ->  | H115: =IFERROR(G115-E115,"") ->  | I115: =IFERROR(H115/E115,"") -> 
C116: PD & PMLD | E116: =IFERROR(VLOOKUP(DFENUM,DATA!B:CG,66,0),"") ->  | G116: =IFERROR(VLOOKUP(DFENUM,DATA!$B:$CG,77,0),"") ->  | H116: =IFERROR(G116-E116,"") ->  | I116: =IFERROR(H116/E116,"") -> 
C117: ASD | E117: =IFERROR(VLOOKUP(DFENUM,DATA!B:CG,67,0),"") ->  | G117: =IFERROR(VLOOKUP(DFENUM,DATA!$B:$CG,78,0),"") ->  | H117: =IFERROR(G117-E117,"") ->  | I117: =IFERROR(H117/E117,"") -> 
B118: School Led Elements
C119: All | E119: =IFERROR(VLOOKUP(DFENUM,DATA!B:CG,68,0),"") ->  | G119: =IFERROR(VLOOKUP(DFENUM,DATA!$B:$CG,79,0),"") ->  | H119: =IFERROR(G119-E119,"") ->  | I119: =IFERROR(H119/E119,"") -> 
B120: Minimum Funding Guarantee
C121: MLD & SLCN | E121: =IFERROR(VLOOKUP(DFENUM,DATA!B:CG,69,0),"") ->  | G121: =IFERROR(VLOOKUP(DFENUM,DATA!$B:$CG,80,0),"") ->  | H121: =IFERROR(G121-E121,"") ->  | I121: =IFERROR(H121/E121,"") -> 
C122: SEMH | E122: =IFERROR(VLOOKUP(DFENUM,DATA!B:CG,70,0),"") ->  | G122: =IFERROR(VLOOKUP(DFENUM,DATA!$B:$CG,81,0),"") ->  | H122: =IFERROR(G122-E122,"") ->  | I122: =IFERROR(H122/E122,"") -> 
C123: SLD | E123: =IFERROR(VLOOKUP(DFENUM,DATA!B:CG,71,0),"") ->  | G123: =IFERROR(VLOOKUP(DFENUM,DATA!$B:$CG,82,0),"") ->  | H123: =IFERROR(G123-E123,"") ->  | I123: =IFERROR(H123/E123,"") -> 
C124: PD & PMLD | E124: =IFERROR(VLOOKUP(DFENUM,DATA!B:CG,72,0),"") ->  | G124: =IFERROR(VLOOKUP(DFENUM,DATA!$B:$CG,83,0),"") ->  | H124: =IFERROR(G124-E124,"") ->  | I124: =IFERROR(H124/E124,"") -> 
C125: ASD | E125: =IFERROR(VLOOKUP(DFENUM,DATA!B:CG,73,0),"") ->  | G125: =IFERROR(VLOOKUP(DFENUM,DATA!$B:$CG,84,0),"") ->  | H125: =IFERROR(G125-E125,"") ->  | I125: =IFERROR(H125/E125,"") -> 
B128: Section 6 - 2025/26 Nursery Provision Lump Sum Calculation
B130: Rates
B132: Leadership Lump Sum per provision | E132: 59852.15082
B133: Day Rate per FTE (see breakdown) | E133: 10392.40519
B135: Calculation
D137: Units | E137: Rate | F137: Total
B138: Leadership Lump Sum | D138: =IF(D139>9,2,IF(D139>0,1,0)) -> 0 | E138: =E132 -> 59852.15082 | F138: =D138*E138 -> 0
B139: Day Rate | D139: =IFERROR(VLOOKUP('Special Rates 2025-26'!DFENUM,DATA!B:BK,62,0),0) -> 0 | E139: =E133 -> 10392.40519 | F139: =D139*E139 -> 0
E141: Total Funding at this provision: | F141: =IFERROR(ROUND(F139+F138,0),"TBC") -> 0

Sheet DATA (hidden)
B1: 1 | C1: 2 | D1: 3 | E1: 4 | F1: 5 | G1: 6 | H1: 7 | I1: 8 | J1: 9 | K1: 10 | L1: 11 | M1: 12 | N1: 13 | O1: 14 | P1: 15 | Q1: 16 | R1: 17 | S1: 18 | T1: 19 | U1: 20 | V1: 21 | W1: 22 | X1: 23 | Y1: 24 | Z1: 25 | AA1: 26 | AB1: 27 | AC1: 28 | AD1: 29 | AE1: 30 | AF1: 31 | AG1: 32 | AH1: 33 | AI1: 34 | AJ1: 35 | AK1: 36 | AL1: 37 | AM1: 38 | AN1: 39 | AO1: 40 | AP1: 41 | AQ1: 42 | AR1: 43 | AS1: 44 | AT1: 45 | AU1: 46 | AV1: 47 | AW1: 48 | AX1: 49 | AY1: 50 | AZ1: 51 | BA1: 52 | BB1: 53 | BC1: 54 | BD1: 55 | BE1: 56 | BF1: 57 | BG1: 58 | BH1: 59 | BI1: 60 | BJ1: 61 | BK1: 62 | BL1: 63 | BM1: 64 | BN1: 65 | BO1: 66 | BP1: 67 | BQ1: 68 | BR1: 69 | BS1: 70 | BT1: 71 | BU1: 72 | BV1: 73 | BW1: 74 | BX1: 75 | BY1: 76 | BZ1: 77 | CA1: 78 | CB1: 79 | CC1: 80 | CD1: 81 | CE1: 82 | CF1: 83 | CG1: 84
D2: Places | L2: Rates | AV2: Residential Rates | BL2: 2024/25 Financial Year | BW2: 2025/26 Financial Year
D3: Pre-16 | F3: Post-16 | H3: Weekday | J3: Weekend | L3: MLD & SLCN | O3: ASD | R3: SEMH | U3: SLD | X3: PD & PMLD | AD3: London Fringe | AV3: ASD Weekday | AY3: PD Weekday | BB3: PD Weekend | BE3: Residential Winter Rates | BG3: Residential Pupil Fringe | BI3: Residential School Fringe | BL3: Pupil Led | BQ3: School | BR3: MFG | BW3: Pupil Led | CB3: School | CC3: MFG
B4: DFE | C4: School | D4: 24/25 | E4: 25/26 | F4: 24/25 | G4: 25/26 | H4: 24/25 | I4: 25/26 | J4: 24/25 | K4: 25/26 | L4: Summer | M4: Winter | N4: Old Financial Year | O4: Summer | P4: Winter | Q4: Old Financial Year | R4: Summer | S4: Winter | T4: Old Financial Year | U4: Summer | V4: Winter | W4: Old Financial Year | X4: Summer | Y4: Winter | Z4: Old Financial Year | AB4: ASD Rate | AC4: SEMH Rate | AD4: MLD & SLCN | AE4: SEMH | AF4: SLD | AG4: PD & PMLD | AH4: ASD | AI4: Residential weekdayASD | AJ4: Residential weekdayPD & PMLD | AK4: Residential WeekendPD & PMLD | AL4: Gross Day Floor Area | AM4: Residential floor area weekday | AN4: Residential floor area weekend | AO4: Grounds site area | AP4: Rentals | AQ4: Hydrotherapy Pool | AR4: No of FSM | AS4: London Fringe | AT4: Split site- Band 1 | AU4: Split site - Band 2 | AV4: Summer | AW4: Last Financial Year | AX4: Winter | AY4: Summer | AZ4: Last Financial Year | BA4: Winter | BB4: Summer | BC4: Last Financial Year | BD4: Winter | BE4: Weekday | BF4: Weekend | BG4: Weekday | BH4: Weekend | BI4: Weekday | BJ4: Weekend | BK4: Nursery FTE | BL4: MLD&SLCN | BM4: SEMH | BN4: SLD | BO4: PD&PMLD | BP4: ASD | BQ4: All | BR4: MLD&SLCN | BS4: SEMH | BT4: SLD | BU4: PD&PMLD | BV4: ASD | BW4: MLD&SLCN | BX4: SEMH | BY4: SLD | BZ4: PD&PMLD | CA4: ASD | CB4: All | CC4: MLD&SLCN | CD4: SEMH | CE4: SLD | CF4: PD&PMLD | CG4: ASD
B5: 7002 | C5: Broomhill Bank School | D5: 280 | E5: 300 | F5: 113 | G5: 118 | H5: 23 | I5: 23 | J5: 0 | K5: 0 | L5: 13071.54279 | M5: 12939.23842 | N5: 15040.5486 | O5: 20682.0168 | P5: 20549.71243 | Q5: 21267.8904 | R5: 19829.62664 | S5: 19697.32227 | T5: 19628.92974 | U5: 17577.12012 | V5: 17444.81575 | W5: 18719.03955 | X5: 25085.60892 | Y5: 24953.30455 | Z5: 24853.5495 | AB5: 17842.64054 | AC5: 17020.59227 | AD5: 46.79897222 | AE5: 63.08813559 | AF5: 73.33420816 | AG5: 117.5272366 | AH5: 93.43003498 | AI5: 0 | AJ5: 0 | AK5: 0 | AL5: 12163 | AM5: 632.1069985 | AN5: 0 | AO5: 10.685 | AP5: 0 | AQ5: 0 | AR5: 0.343537415 | AS5: 1 | AT5: 0 | AU5: 1 | AV5: 61330.60278 | AW5: 61880.6439 | AX5: 61198.29841 | AY5: 0 | AZ5: 0 | BA5: 0 | BB5: 0 | BC5: 0 | BD5: 0 | BE5: 28329.08333 | BF5: 0 | BG5: 1018.501751 | BH5: 0 | BI5: 10.67776146 | BJ5: 0 | BK5: 0 | BL5: 10512.10702 | BM5: 17203.27914 | BN5: 14973.07467 | BO5: 22407.22199 | BP5: 18047.2298 | BQ5: 2425.650597 | BR5: 2102.790985 | BS5: 0 | BT5: 1320.314284 | BU5: 20.67691176 | BV5: 795.0100052 | BW5: 10617.22809 | BX5: 17375.31193 | BY5: 15122.80542 | BZ5: 22631.29421 | CA5: 18227.7021 | CB5: 2377.137156 | CC5: 2046.183356 | CD5: 0 | CE5: 1219.096979 | CF5: 0 | CG5: 663.0511484
B6: 7005 | C6: Aspire School | D6: 174 | E6: 189 | F6: 0 | G6: 0 | H6: 0 | I6: 0 | J6: 0 | K6: 0 | L6: 13809.65311 | M6: 13566.54642 | N6: 13681.50309 | O6: 21373.49605 | P6: 21130.38936 | Q6: 21170.4565 | R6: 20551.44779 | S6: 20308.3411 | T6: 20356.54732 | U6: 18288.6952 | V6: 18045.58851 | W6: 18116.19823 | X6: 25752.99096 | Y6: 25509.88427 | Z6: 25506.59007 | AB6: 17842.64054 | AC6: 17020.59227 | AD6: 0 | AE6: 0 | AF6: 0 | AG6: 0 | AH6: 0 | AI6: 0 | AJ6: 0 | AK6: 0 | AL6: 3227 | AM6: 0 | AN6: 0 | AO6: 1.7432 | AP6: 0 | AQ6: 0 | AR6: 0.3850574713 | AS6: 0 | AT6: 0 | AU6: 0 | AV6: 0 | AW6: 0 | AX6: 0 | AY6: 0 | AZ6: 0 | BA6: 0 | BB6: 0 | BC6: 0 | BD6: 0 | BE6: 0 | BF6: 0 | BG6: 0 | BH6: 0 | BI6: 0 | BJ6: 0 | BK6: 0 | BL6: 10465.7714 | BM6: 17140.81564 | BN6: 14900.46654 | BO6: 22290.85839 | BP6: 17954.72481 | BQ6: 3215.731684 | BR6: 0 | BS6: 0 | BT6: 0 | BU6: 0 | BV6: 0 | BW6: 10570.42912 | BX6: 17312.2238 | BY6: 15049.47121 | BZ6: 22513.76697 | CA6: 18134.27206 | CB6: 3097.411754 | CC6: 13.66221562 | CD6: 0 | CE6: 0 | CF6: 0 | CG6: 0
B7: 7006 | C7: Snowfields Academy | D7: 276 | E7: 312 | F7: 48 | G7: 36 | H7: 0 | I7: 0 | J7: 0 | K7: 0 | L7: 13004.26785 | M7: 12852.72601 | N7: 13997.24805 | O7: 20568.11079 | P7: 20416.56895 | Q7: 21376.0686 | R7: 19746.06253 | S7: 19594.52069 | T7: 20574.12885 | U7: 17483.30994 | V7: 17331.7681 | W7: 18366.72675 | X7: 24947.60571 | Y7: 24796.06387 | Z7: 25648.4442 | AB7: 17842.64054 | AC7: 17020.59227 | AD7: 0 | AE7: 0 | AF7: 0 | AG7: 0 | AH7: 0 | AI7: 0 | AJ7: 0 | AK7: 0 | AL7: 7642 | AM7: 0 | AN7: 0 | AO7: 7.3 | AP7: 0 | AQ7: 0 | AR7: 0.3485915493 | AS7: 0 | AT7: 0 | AU7: 1 | AV7: 0 | AW7: 0 | AX7: 0 | AY7: 0 | AZ7: 0 | BA7: 0 | BB7: 0 | BC7: 0 | BD7: 0 | BE7: 0 | BF7: 0 | BG7: 0 | BH7: 0 | BI7: 0 | BJ7: 0 | BK7: 0 | BL7: 10465.7714 | BM7: 17140.81564 | BN7: 14900.46654 | BO7: 22290.85839 | BP7: 17954.72481 | BQ7: 2693.666599 | BR7: 837.8100496 | BS7: 739.6466109 | BT7: 772.59361 | BU7: 663.9192113 | BV7: 727.6771893 | BW7: 10570.42912 | BX7: 17312.2238 | BY7: 15049.47121 | BZ7: 22513.76697 | CA7: 18134.27206 | CB7: 2345.439326 | CC7: 1081.379608 | CD7: 916.4657273 | CE7: 971.8162174 | CF7: 789.2379003 | CG7: 896.357214
B8: 7021 | C8: Valence School | D8: 85 | E8: 85 | F8: 30 | G8: 30 | H8: 46 | I8: 46 | J8: 18 | K8: 18 | L8: 17475.60993 | M8: 17486.36531 | N8: 17412.63893 | O8: 24355.06229 | P8: 24365.81767 | Q8: 24223.9779 | R8: 24270.83306 | S8: 24281.58845 | T8: 24140.58263 | U8: 22041.68759 | V8: 22052.44298 | W8: 21933.5079 | X8: 29650.93649 | Y8: 29661.69188 | Z8: 29467.4177 | AB8: 17020.59227 | AC8: 17020.59227 | AD8: 178.969004 | AE8: 232.3974599 | AF8: 266.0045779 | AG8: 410.9577113 | AH8: 316.6266832 | AI8: 0 | AJ8: 0 | AK8: 0 | AL8: 8799 | AM8: 0 | AN8: 1924 | AO8: 18.322 | AP8: 0 | AQ8: 1 | AR8: 0.3516483516 | AS8: 1 | AT8: 0 | AU8: 0 | AV8: 0 | AW8: 0 | AX8: 0 | AY8: 82902.82484 | AZ8: 82120.97456 | BA8: 82913.58022 | BB8: 111639.0702 | BC8: 110527.9539 | BD8: 111649.8256 | BE8: 43508.32725 | BF8: 27388.91843 | BG8: 1317.183027 | BH8: 1865.475147 | BI8: 38.81134164 | BJ8: 38.81134164 | BK8: 0 | BL8: 10642.96844 | BM8: 17370.91214 | BN8: 15163.83741 | BO8: 22697.74721 | BP8: 17454.30741 | BQ8: 6769.670491 | BR8: 0 | BS8: 0 | BT8: 0 | BU8: 0 | BV8: 0 | BW8: 10749.39812 | BX8: 17544.62126 | BY8: 15315.47578 | BZ8: 22924.72469 | CA8: 17628.85048 | CB8: 6732.48578 | CC8: 0 | CD8: 0 | CE8: 0 | CF8: 0 | CG8: 0
B9: 7032 | C9: Bower Grove School | D9: 225 | E9: 225 | F9: 0 | G9: 0 | H9: 0 | I9: 0 | J9: 0 | K9: 0 | L9: 13420.80353 | M9: 13431.62508 | N9: 13275.17304 | O9: 20162.59821 | P9: 20173.41976 | Q9: 19950.21728 | R9: 20162.59821 | S9: 20173.41976 | T9: 19950.21728 | U9: 17899.84562 | V9: 17910.66717 | W9: 17709.86818 | X9: 25364.14139 | Y9: 25374.96294 | Z9: 25100.26003 | AB9: 17020.59227 | AC9: 17020.59227 | AD9: 0 | AE9: 0 | AF9: 0 | AG9: 0 | AH9: 0 | AI9: 0 | AJ9: 0 | AK9: 0 | AL9: 4185.3 | AM9: 0 | AN9: 0 | AO9: 2.1496 | AP9: 0 | AQ9: 0 | AR9: 0.6808510638 | AS9: 0 | AT9: 1 | AU9: 0 | AV9: 0 | AW9: 0 | AX9: 0 | AY9: 0 | AZ9: 0 | BA9: 0 | BB9: 0 | BC9: 0 | BD9: 0 | BE9: 0 | BF9: 0 | BG9: 0 | BH9: 0 | BI9: 0 | BJ9: 0 | BK9: 0 | BL9: 10465.7714 | BM9: 17140.81564 | BN9: 14900.46654 | BO9: 22290.85839 | BP9: 17140.81564 | BQ9: 2809.401639 | BR9: 0 | BS9: 0 | BT9: 0 | BU9: 0 | BV9: 0 | BW9: 10570.42912 | BX9: 17312.2238 | BY9: 15049.47121 | BZ9: 22513.76697 | CA9: 17312.2238 | CB9: 2856.686986 | CC9: 0 | CD9: 0 | CE9: 0 | CF9: 0 | CG9: 0
B10: 7033 | C10: St Anthony's School | D10: 98 | E10: 98 | F10: 0 | G10: 0 | H10: 0 | I10: 0 | J10: 0 | K10: 0 | L10: 16476.37243 | M10: 16471.00235 | N10: 16140.4146 | O10: 23218.16712 | P10: 23212.79703 | Q10: 22815.45884 | R10: 23218.16712 | S10: 23212.79703 | T10: 22815.45884 | U10: 20955.41453 | V10: 20950.04444 | W10: 20575.10974 | X10: 28419.71029 | Y10: 28414.3402 | Z10: 27965.50159 | AB10: 17020.59227 | AC10: 17020.59227 | AD10: 0 | AE10: 0 | AF10: 0 | AG10: 0 | AH10: 0 | AI10: 0 | AJ10: 0 | AK10: 0 | AL10: 3614 | AM10: 0 | AN10: 0 | AO10: 1.54 | AP10: 0 | AQ10: 0 | AR10: 0.7169811321 | AS10: 0 | AT10: 0 | AU10: 0 | AV10: 0 | AW10: 0 | AX10: 0 | AY10: 0 | AZ10: 0 | BA10: 0 | BB10: 0 | BC10: 0 | BD10: 0 | BE10: 0 | BF10: 0 | BG10: 0 | BH10: 0 | BI10: 0 | BJ10: 0 | BK10: 0 | BL10: 10465.7714 | BM10: 17140.81564 | BN10: 14900.46654 | BO10: 22290.85839 | BP10: 17140.81564 | BQ10: 5674.6432 | BR10: 0 | BS10: 0 | BT10: 0 | BU10: 0 | BV10: 0 | BW10: 10570.42912 | BX10: 17312.2238 | BY10: 15049.47121 | BZ10: 22513.76697 | CA10: 17312.2238 | CB10: 5902.810767 | CC10: 0 | CD10: 0 | CE10: 0 | CF10: 0 | CG10: 0
B11: 7039 | C11: The Ifield School | D11: 221 | E11: 211 | F11: 45 | G11: 55 | H11: 0 | I11: 0 | J11: 0 | K11: 0 | L11: 13271.01863 | M11: 13264.41031 | N11: 13128.51833 | O11: 20834.86157 | P11: 20828.25325 | Q11: 20617.47174 | R11: 20012.81331 | S11: 20006.20499 | T11: 19803.56257 | U11: 17750.06072 | V11: 17743.4524 | W11: 17563.21347 | X11: 25214.35648 | Y11: 25207.74816 | Z11: 24953.60532 | AB11: 17842.64054 | AC11: 17020.59227 | AD11: 0 | AE11: 0 | AF11: 0 | AG11: 0 | AH11: 0 | AI11: 0 | AJ11: 0 | AK11: 0 | AL11: 4274.139996 | AM11: 0 | AN11: 0 | AO11: 6.22 | AP11: 75000 | AQ11: 1 | AR11: 0.4507042254 | AS11: 0 | AT11: 1 | AU11: 0 | AV11: 0 | AW11: 0 | AX11: 0 | AY11: 0 | AZ11: 0 | BA11: 0 | BB11: 0 | BC11: 0 | BD11: 0 | BE11: 0 | BF11: 0 | BG11: 0 | BH11: 0 | BI11: 0 | BJ11: 0 | BK11: 6 | BL11: 10465.7714 | BM11: 17140.81564 | BN11: 14900.46654 | BO11: 22290.85839 | BP11: 17954.72481 | BQ11: 2662.746928 | BR11: 0 | BS11: 0 | BT11: 0 | BU11: 0 | BV11: 0 | BW11: 10570.42912 | BX11: 17312.2238 | BY11: 15049.47121 | BZ11: 22513.76697 | CA11: 18134.27206 | CB11: 2696.734656 | CC11: 0 | CD11: 0 | CE11: 0 | CF11: 0 | CG11: 0
B12: 7040 | C12: Foreland Fields School | D12: 210 | E12: 210 | F12: 34 | G12: 32 | H12: 0 | I12: 0 | J12: 0 | K12: 0 | L12: 13630.75176 | M12: 13668.2634 | N12: 13386.1438 | O12: 21194.59471 | P12: 21232.10635 | Q12: 20875.09721 | R12: 20372.54644 | S12: 20410.05808 | T12: 20061.18804 | U12: 18109.79385 | V12: 18147.30549 | W12: 17820.83894 | X12: 25574.08962 | Y12: 25611.60126 | Z12: 25211.23079 | AB12: 17842.64054 | AC12: 17020.59227 | AD12: 0 | AE12: 0 | AF12: 0 | AG12: 0 | AH12: 0 | AI12: 0 | AJ12: 0 | AK12: 0 | AL12: 4705.83 | AM12: 0 | AN12: 0 | AO12: 4.4853 | AP12: 89330 | AQ12: 1 | AR12: 0.5022222222 | AS12: 0 | AT12: 2 | AU12: 0 | AV12: 0 | AW12: 0 | AX12: 0 | AY12: 0 | AZ12: 0 | BA12: 0 | BB12: 0 | BC12: 0 | BD12: 0 | BE12: 0 | BF12: 0 | BG12: 0 | BH12: 0 | BI12: 0 | BJ12: 0 | BK12: 10 | BL12: 10465.7714 | BM12: 17140.81564 | BN12: 14900.46654 | BO12: 22290.85839 | BP12: 17954.72481 | BQ12: 2920.372397 | BR12: 0 | BS12: 0 | BT12: 0 | BU12: 0 | BV12: 0 | BW12: 10570.42912 | BX12: 17312.2238 | BY12: 15049.47121 | BZ12: 22513.76697 | CA12: 18134.27206 | CB12: 3082.204435 | CC12: 0 | CD12: 0 | CE12: 0 | CF12: 0 | CG12: 0
B13: 7041 | C13: Goldwyn School | D13: 160 | E13: 160 | F13: 35 | G13: 35 | H13: 0 | I13: 0 | J13: 0 | K13: 0 | L13: 15365.47618 | M13: 15378.96447 | N13: 14810.86078 | O13: 22107.27086 | P13: 22120.75915 | Q13: 21485.90502 | R13: 22107.27086 | S13: 22120.75915 | T13: 21485.90502 | U13: 19844.51827 | V13: 19858.00656 | W13: 19245.55592 | X13: 27308.81403 | Y13: 27322.30233 | Z13: 26635.94776 | AB13: 17020.59227 | AC13: 17020.59227 | AD13: 0 | AE13: 0 | AF13: 0 | AG13: 0 | AH13: 0 | AI13: 0 | AJ13: 0 | AK13: 0 | AL13: 6370.10009 | AM13: 0 | AN13: 0 | AO13: 7.8662 | AP13: 47900 | AQ13: 0 | AR13: 0.51875 | AS13: 0 | AT13: 3 | AU13: 4 | AV13: 0 | AW13: 0 | AX13: 0 | AY13: 0 | AZ13: 0 | BA13: 0 | BB13: 0 | BC13: 0 | BD13: 0 | BE13: 0 | BF13: 0 | BG13: 0 | BH13: 0 | BI13: 0 | BJ13: 0 | BK13: 0 | BL13: 10465.7714 | BM13: 17140.81564 | BN13: 14900.46654 | BO13: 22290.85839 | BP13: 17140.81564 | BQ13: 4345.089375 | BR13: 0 | BS13: 0 | BT13: 0 | BU13: 0 | BV13: 0 | BW13: 10570.42912 | BX13: 17312.2238 | BY13: 15049.47121 | BZ13: 22513.76697 | CA13: 17312.2238 | CB13: 4802.915234 | CC13: 0 | CD13: 0 | CE13: 0 | CF13: 0 | CG13: 0
B14: 7043 | C14: The Beacon Folkestone | D14: 324 | E14: 373 | F14: 84 | G14: 75 | H14: 0 | I14: 0 | J14: 0 | K14: 0 | L14: 12860.2945 | M14: 12679.43285 | N14: 12674.34041 | O14: 20424.13745 | P14: 20243.2758 | Q14: 20163.29382 | R14: 19602.08918 | S14: 19421.22753 | T14: 19349.38465 | U14: 17339.33659 | V14: 17158.47494 | W14: 17109.03555 | X14: 24803.63236 | Y14: 24622.77071 | Z14: 24499.4274 | AB14: 17842.64054 | AC14: 17020.59227 | AD14: 0 | AE14: 0 | AF14: 0 | AG14: 0 | AH14: 0 | AI14: 0 | AJ14: 0 | AK14: 0 | AL14: 10148 | AM14: 0 | AN14: 0 | AO14: 5.4561 | AP14: 0 | AQ14: 1 | AR14: 0.5494186047 | AS14: 0 | AT14: 0 | AU14: 1 | AV14: 0 | AW14: 0 | AX14: 0 | AY14: 0 | AZ14: 0 | BA14: 0 | BB14: 0 | BC14: 0 | BD14: 0 | BE14: 0 | BF14: 0 | BG14: 0 | BH14: 0 | BI14: 0 | BJ14: 0 | BK14: 10 | BL14: 10465.7714 | BM14: 17140.81564 | BN14: 14900.46654 | BO14: 22290.85839 | BP14: 17954.72481 | BQ14: 2208.569007 | BR14: 0 | BS14: 0 | BT14: 0 | BU14: 0 | BV14: 0 | BW14: 10570.42912 | BX14: 17312.2238 | BY14: 15049.47121 | BZ14: 22513.76697 | CA14: 18134.27206 | CB14: 2184.362757 | CC14: 0 | CD14: 0 | CE14: 0 | CF14: 0 | CG14: 0
B15: 7044 | C15: Rowhill School | D15: 150 | E15: 150 | F15: 0 | G15: 0 | H15: 0 | I15: 0 | J15: 0 | K15: 0 | L15: 14826.7489 | M15: 14830.92466 | N15: 15047.0409 | O15: 21706.20126 | P15: 21710.37702 | Q15: 21702.34718 | R15: 21630.66962 | S15: 21634.84538 | T15: 21627.56338 | U15: 19392.82656 | V15: 19397.00233 | W15: 19415.96685 | X15: 27002.07546 | Y15: 27006.25123 | Z15: 26945.78699 | AB15: 17020.59227 | AC15: 17020.59227 | AD15: 178.969004 | AE15: 241.0950427 | AF15: 266.0045779 | AG15: 410.9577113 | AH15: 316.6266832 | AI15: 0 | AJ15: 0 | AK15: 0 | AL15: 4165 | AM15: 0 | AN15: 0 | AO15: 1.8948 | AP15: 0 | AQ15: 0 | AR15: 0.60625 | AS15: 1 | AT15: 0 | AU15: 0 | AV15: 0 | AW15: 0 | AX15: 0 | AY15: 0 | AZ15: 0 | BA15: 0 | BB15: 0 | BC15: 0 | BD15: 0 | BE15: 0 | BF15: 0 | BG15: 0 | BH15: 0 | BI15: 0 | BJ15: 0 | BK15: 0 | BL15: 10642.96844 | BM15: 17379.5236 | BN15: 15163.83741 | BO15: 22697.74721 | BP15: 17454.30741 | BQ15: 4248.039777 | BR15: 156.0326877 | BS15: 0 | BT15: 4.089662557 | BU15: 0 | BV15: 0 | BW15: 10749.39812 | BX15: 17553.31884 | BY15: 15315.47578 | BZ15: 22924.72469 | CA15: 17628.85048 | CB15: 4079.78664 | CC15: 217.8561397 | CD15: 0 | CE15: 20.70442483 | CF15: 0 | CG15: 0
B16: 7045 | C16: Elms School | D16: 152 | E16: 152 | F16: 0 | G16: 0 | H16: 0 | I16: 0 | J16: 0 | K16: 0 | L16: 14363.26664 | M16: 14345.55021 | N16: 14216.53763 | O16: 21105.06132 | P16: 21087.34489 | Q16: 20891.58187 | R16: 21105.06132 | S16: 21087.34489 | T16: 20891.58187 | U16: 18842.30873 | V16: 18824.5923 | W16: 18651.23277 | X16: 26306.6045 | Y16: 26288.88807 | Z16: 26041.62462 | AB16: 17020.59227 | AC16: 17020.59227 | AD16: 0 | AE16: 0 | AF16: 0 | AG16: 0 | AH16: 0 | AI16: 0 | AJ16: 0 | AK16: 0 | AL16: 2771 | AM16: 0 | AN16: 0 | AO16: 2.13 | AP16: 0 | AQ16: 0 | AR16: 0.7925925926 | AS16: 0 | AT16: 0 | AU16: 0 | AV16: 0 | AW16: 0 | AX16: 0 | AY16: 0 | AZ16: 0 | BA16: 0 | BB16: 0 | BC16: 0 | BD16: 0 | BE16: 0 | BF16: 0 | BG16: 0 | BH16: 0 | BI16: 0 | BJ16: 0 | BK16: 0 | BL16: 10465.7714 | BM16: 17140.81564 | BN16: 14900.46654 | BO16: 22290.85839 | BP16: 17140.81564 | BQ16: 3750.766229 | BR16: 0 | BS16: 0 | BT16: 0 | BU16: 0 | BV16: 0 | BW16: 10570.42912 | BX16: 17312.2238 | BY16: 15049.47121 | BZ16: 22513.76697 | CA16: 17312.2238 | CB16: 3782.502943 | CC16: 0 | CD16: 0 | CE16: 0 | CF16: 0 | CG16: 0
B17: 7051 | C17: Nexus School | D17: 256 | E17: 274 | F17: 39 | G17: 54 | H17: 0 | I17: 0 | J17: 0 | K17: 0 | L17: 13184.75349 | M17: 12947.33161 | N17: 13222.05135 | O17: 20748.59643 | P17: 20511.17455 | Q17: 20552.42767 | R17: 19926.54817 | S17: 19689.12629 | T17: 19738.5185 | U17: 17663.79558 | V17: 17426.3737 | W17: 17498.1694 | X17: 25128.09134 | Y17: 24890.66947 | Z17: 24888.56125 | AB17: 17842.64054 | AC17: 17020.59227 | AD17: 0 | AE17: 0 | AF17: 0 | AG17: 0 | AH17: 0 | AI17: 0 | AJ17: 0 | AK17: 0 | AL17: 7075.8 | AM17: 0 | AN17: 0 | AO17: 2.36 | AP17: 0 | AQ17: 1 | AR17: 0.4033613445 | AS17: 0 | AT17: 0 | AU17: 1 | AV17: 0 | AW17: 0 | AX17: 0 | AY17: 0 | AZ17: 0 | BA17: 0 | BB17: 0 | BC17: 0 | BD17: 0 | BE17: 0 | BF17: 0 | BG17: 0 | BH17: 0 | BI17: 0 | BJ17: 0 | BK17: 8 | BL17: 10465.7714 | BM17: 17140.81564 | BN17: 14900.46654 | BO17: 22290.85839 | BP17: 17954.72481 | BQ17: 2597.702859 | BR17: 158.5770895 | BS17: 0 | BT17: 0 | BU17: 0 | BV17: 0 | BW17: 10570.42912 | BX17: 17312.2238 | BY17: 15049.47121 | BZ17: 22513.76697 | CA17: 18134.27206 | CB17: 2475.828274 | CC17: 175.7939596 | CD17: 0 | CE17: 0 | CF17: 0 | CG17: 0
B18: 7052 | C18: Grange Park School | D18: 136 | E18: 136 | F18: 75 | G18: 64 | H18: 0 | I18: 0 | J18: 0 | K18: 0 | L18: 13181.62327 | M18: 13322.08135 | N18: 13643.82975 | O18: 20745.46621 | P18: 20885.9243 | Q18: 21022.6503 | R18: 19923.41795 | S18: 20063.87604 | T18: 20220.71055 | U18: 17660.66536 | V18: 17801.12345 | W18: 18013.30845 | X18: 25124.96113 | Y18: 25265.41921 | Z18: 25295.0259 | AB18: 17842.64054 | AC18: 17020.59227 | AD18: 0 | AE18: 0 | AF18: 0 | AG18: 0 | AH18: 0 | AI18: 0 | AJ18: 0 | AK18: 0 | AL18: 2589.33 | AM18: 0 | AN18: 0 | AO18: 1.2465 | AP18: 0 | AQ18: 0 | AR18: 0.3821138211 | AS18: 0 | AT18: 1 | AU18: 0 | AV18: 0 | AW18: 0 | AX18: 0 | AY18: 0 | AZ18: 0 | BA18: 0 | BB18: 0 | BC18: 0 | BD18: 0 | BE18: 0 | BF18: 0 | BG18: 0 | BH18: 0 | BI18: 0 | BJ18: 0 | BK18: 0 | BL18: 10465.7714 | BM18: 17140.81564 | BN18: 14900.46654 | BO18: 22290.85839 | BP18: 17954.72481 | BQ18: 2953.617836 | BR18: 224.440512 | BS18: 126.2770733 | BT18: 159.2240724 | BU18: 50.54967375 | BV18: 114.3076517 | BW18: 10570.42912 | BX18: 17312.2238 | BY18: 15049.47121 | BZ18: 22513.76697 | CA18: 18134.27206 | CB18: 2693.128036 | CC18: 380.2725984 | CD18: 215.3587173 | CE18: 270.7092074 | CF18: 88.13089025 | CG18: 195.250204
B19: 7056 | C19: Five Acre Wood School | D19: 728 | E19: 690 | F19: 110 | G19: 122 | H19: 0 | I19: 0 | J19: 0 | K19: 0 | L19: 11795.8463 | M19: 11834.34337 | N19: 11727.69721 | O19: 19359.68924 | P19: 19398.18632 | Q19: 19216.65062 | R19: 18537.64098 | S19: 18576.13805 | T19: 18402.74145 | U19: 16274.88839 | V19: 16313.38546 | W19: 16162.39235 | X19: 23739.18416 | Y19: 23777.68123 | Z19: 23552.7842 | AB19: 17842.64054 | AC19: 17020.59227 | AD19: 0 | AE19: 0 | AF19: 0 | AG19: 0 | AH19: 0 | AI19: 0 | AJ19: 0 | AK19: 0 | AL19: 11119.17 | AM19: 0 | AN19: 0 | AO19: 2.6382 | AP19: 9259 | AQ19: 1 | AR19: 0.3975069252 | AS19: 0 | AT19: 1 | AU19: 1 | AV19: 0 | AW19: 0 | AX19: 0 | AY19: 0 | AZ19: 0 | BA19: 0 | BB19: 0 | BC19: 0 | BD19: 0 | BE19: 0 | BF19: 0 | BG19: 0 | BH19: 0 | BI19: 0 | BJ19: 0 | BK19: 15 | BL19: 10465.7714 | BM19: 17140.81564 | BN19: 14900.46654 | BO19: 22290.85839 | BP19: 17954.72481 | BQ19: 1261.92581 | BR19: 0 | BS19: 0 | BT19: 0 | BU19: 0 | BV19: 0 | BW19: 10570.42912 | BX19: 17312.2238 | BY19: 15049.47121 | BZ19: 22513.76697 | CA19: 18134.27206 | CB19: 1247.873809 | CC19: 0 | CD19: 0 | CE19: 0 | CF19: 0 | CG19: 0
B20: 7058 | C20: Stone Bay School | D20: 95 | E20: 84 | F20: 8 | G20: 19 | H20: 10 | I20: 10 | J20: 0 | K20: 0 | L20: 15782.69481 | M20: 15781.74396 | N20: 17117.6625 | O20: 30744.97212 | P20: 30744.02127 | Q20: 30600.9837 | R20: 22524.48949 | S20: 22523.53864 | T20: 22449.76035 | U20: 20261.7369 | V20: 20260.78605 | W20: 21121.4619 | X20: 27726.03266 | Y20: 27725.08182 | Z20: 27794.4207 | AB20: 25241.07491 | AC20: 17020.59227 | AD20: 0 | AE20: 0 | AF20: 0 | AG20: 0 | AH20: 0 | AI20: 0 | AJ20: 0 | AK20: 0 | AL20: 2396.216342 | AM20: 1481.783658 | AN20: 0 | AO20: 0.96 | AP20: 0 | AQ20: 1 | AR20: 0.595959596 | AS20: 0 | AT20: 0 | AU20: 0 | AV20: 94440.1129 | AW20: 93440.61588 | AX20: 94439.16206 | AY20: 91421.17345 | AZ20: 90451.56691 | BA20: 91420.2226 | BB20: 0 | BC20: 0 | BD20: 0 | BE20: 34615.65752 | BF20: 0 | BG20: 0 | BH20: 0 | BI20: 0 | BJ20: 0 | BK20: 0 | BL20: 10465.7714 | BM20: 17140.81564 | BN20: 14900.46654 | BO20: 22290.85839 | BP20: 25279.90736 | BQ20: 5152.768682 | BR20: 1499.122416 | BS20: 156.1760275 | BT20: 1068.226677 | BU20: 350.7936279 | BV20: 168.3076611 | BW20: 10570.42912 | BX20: 17312.2238 | BY20: 15049.47121 | BZ20: 22513.76697 | CA20: 25532.70643 | CB20: 5211.711029 | CC20: 1335.522355 | CD20: 0 | CE20: 860.2796642 | CF20: 68.94269704 | CG20: 0
B21: 7062 | C21: The Orchard School | D21: 100 | E21: 100 | F21: 0 | G21: 0 | H21: 0 | I21: 0 | J21: 0 | K21: 0 | L21: 15966.40621 | M21: 15979.6949 | N21: 16124.65215 | O21: 22708.20089 | P21: 22721.48958 | Q21: 22580.1993 | R21: 22708.20089 | S21: 22721.48958 | T21: 22580.1993 | U21: 20445.4483 | V21: 20458.73699 | W21: 20413.5198 | X21: 27909.74407 | Y21: 27923.03275 | Z21: 27632.66671 | AB21: 17020.59227 | AC21: 17020.59227 | AD21: 0 | AE21: 0 | AF21: 0 | AG21: 0 | AH21: 0 | AI21: 0 | AJ21: 0 | AK21: 0 | AL21: 2505 | AM21: 0 | AN21: 0 | AO21: 1.81 | AP21: 0 | AQ21: 0 | AR21: 0.7207207207 | AS21: 0 | AT21: 0 | AU21: 0 | AV21: 0 | AW21: 0 | AX21: 0 | AY21: 0 | AZ21: 0 | BA21: 0 | BB21: 0 | BC21: 0 | BD21: 0 | BE21: 0 | BF21: 0 | BG21: 0 | BH21: 0 | BI21: 0 | BJ21: 0 | BK21: 0 | BL21: 10465.7714 | BM21: 17140.81564 | BN21: 14900.46654 | BO21: 22290.85839 | BP21: 17140.81564 | BQ21: 5341.808322 | BR21: 317.0724262 | BS21: 97.57533754 | BT21: 171.2449366 | BU21: 0 | BV21: 97.57533754 | BW21: 10570.42912 | BX21: 17312.2238 | BY21: 15049.47121 | BZ21: 22513.76697 | CA21: 17312.2238 | CB21: 5403.728827 | CC21: 150.4942072 | CD21: 0 | CE21: 0 | CF21: 0 | CG21: 0
B22: 7063 | C22: St Nicholas' School | D22: 297 | E22: 304 | F22: 43 | G22: 56 | H22: 0 | I22: 0 | J22: 0 | K22: 0 | L22: 13328.83226 | M22: 13214.65405 | N22: 13135.81135 | O22: 20892.6752 | P22: 20778.497 | Q22: 20624.76476 | R22: 20070.62694 | S22: 19956.44873 | T22: 19810.85559 | U22: 17807.87435 | V22: 17693.69614 | W22: 17570.50649 | X22: 25272.17011 | Y22: 25157.99191 | Z22: 24960.89834 | AB22: 17842.64054 | AC22: 17020.59227 | AD22: 0 | AE22: 0 | AF22: 0 | AG22: 0 | AH22: 0 | AI22: 0 | AJ22: 0 | AK22: 0 | AL22: 3971.77001 | AM22: 0 | AN22: 0 | AO22: 0.9305 | AP22: 146214 | AQ22: 1 | AR22: 0.52 | AS22: 0 | AT22: 4 | AU22: 3 | AV22: 0 | AW22: 0 | AX22: 0 | AY22: 0 | AZ22: 0 | BA22: 0 | BB22: 0 | BC22: 0 | BD22: 0 | BE22: 0 | BF22: 0 | BG22: 0 | BH22: 0 | BI22: 0 | BJ22: 0 | BK22: 6 | BL22: 10465.7714 | BM22: 17140.81564 | BN22: 14900.46654 | BO22: 22290.85839 | BP22: 17954.72481 | BQ22: 2670.039948 | BR22: 0 | BS22: 0 | BT22: 0 | BU22: 0 | BV22: 0 | BW22: 10570.42912 | BX22: 17312.2238 | BY22: 15049.47121 | BZ22: 22513.76697 | CA22: 18134.27206 | CB22: 2691.799188 | CC22: 0 | CD22: 0 | CE22: 0 | CF22: 0 | CG22: 0
B23: 7066 | C23: Milestone Academy | D23: 288 | E23: 283 | F23: 75 | G23: 80 | H23: 0 | I23: 0 | J23: 0 | K23: 0 | L23: 13154.46808 | M23: 13165.83184 | N23: 13020.51947 | O23: 20871.26091 | P23: 20882.62467 | Q23: 20660.90841 | R23: 19949.69122 | S23: 19961.05497 | T23: 19748.46317 | U23: 17720.54575 | V23: 17731.9095 | W23: 17541.38844 | X23: 25329.79465 | Y23: 25341.1584 | Z23: 25075.29824 | AB23: 17842.64054 | AC23: 17020.59227 | AD23: 179.366803 | AE23: 232.7952589 | AF23: 266.4023769 | AG23: 411.3555103 | AH23: 332.3166888 | AI23: 0 | AJ23: 0 | AK23: 0 | AL23: 7151 | AM23: 0 | AN23: 0 | AO23: 4.6769 | AP23: 0 | AQ23: 1 | AR23: 0.3558718861 | AS23: 1 | AT23: 0 | AU23: 3 | AV23: 0 | AW23: 0 | AX23: 0 | AY23: 0 | AZ23: 0 | BA23: 0 | BB23: 0 | BC23: 0 | BD23: 0 | BE23: 0 | BF23: 0 | BG23: 0 | BH23: 0 | BI23: 0 | BJ23: 0 | BK23: 12 | BL23: 10643.3623 | BM23: 17371.306 | BN23: 15164.23127 | BO23: 22698.14107 | BP23: 18283.75124 | BQ23: 2377.157169 | BR23: 0 | BS23: 0 | BT23: 0 | BU23: 0 | BV23: 0 | BW23: 10749.79592 | BX23: 17545.01906 | BY23: 15315.87358 | BZ23: 22925.12248 | CA23: 18466.58875 | CB23: 2411.30102 | CC23: 0 | CD23: 0 | CE23: 0 | CF23: 0 | CG23: 0
B24: 7067 | C24: Portal House School | D24: 80 | E24: 80 | F24: 0 | G24: 0 | H24: 0 | I24: 0 | J24: 0 | K24: 0 | L24: 17752.63286 | M24: 17751.87989 | N24: 17560.47856 | O24: 24494.42754 | P24: 24493.67457 | Q24: 24235.5228 | R24: 24494.42754 | S24: 24493.67457 | T24: 24235.5228 | U24: 22231.67495 | V24: 22230.92198 | W24: 21995.1737 | X24: 29695.97071 | Y24: 29695.21775 | Z24: 29385.56555 | AB24: 17020.59227 | AC24: 17020.59227 | AD24: 0 | AE24: 0 | AF24: 0 | AG24: 0 | AH24: 0 | AI24: 0 | AJ24: 0 | AK24: 0 | AL24: 3816 | AM24: 0 | AN24: 0 | AO24: 0.81 | AP24: 0 | AQ24: 0 | AR24: 0.6216216216 | AS24: 0 | AT24: 0 | AU24: 0 | AV24: 0 | AW24: 0 | AX24: 0 | AY24: 0 | AZ24: 0 | BA24: 0 | BB24: 0 | BC24: 0 | BD24: 0 | BE24: 0 | BF24: 0 | BG24: 0 | BH24: 0 | BI24: 0 | BJ24: 0 | BK24: 0 | BL24: 10465.7714 | BM24: 17140.81564 | BN24: 14900.46654 | BO24: 22290.85839 | BP24: 17140.81564 | BQ24: 7094.70716 | BR24: 0 | BS24: 0 | BT24: 0 | BU24: 0 | BV24: 0 | BW24: 10570.42912 | BX24: 17312.2238 | BY24: 15049.47121 | BZ24: 22513.76697 | CA24: 17312.2238 | CB24: 7181.764512 | CC24: 0 | CD24: 0 | CE24: 0 | CF24: 0 | CG24: 0
B25: 7069 | C25: The Wyvern School | D25: 308 | E25: 302 | F25: 44 | G25: 58 | H25: 0 | I25: 0 | J25: 0 | K25: 0 | L25: 12631.47149 | M25: 12602.53414 | N25: 12504.68026 | O25: 20195.31443 | P25: 20166.37708 | Q25: 19993.63367 | R25: 19373.26617 | S25: 19344.32882 | T25: 19179.7245 | U25: 17110.51358 | V25: 17081.57623 | W25: 16939.3754 | X25: 24574.80935 | Y25: 24545.872 | Z25: 24329.76725 | AB25: 17842.64054 | AC25: 17020.59227 | AD25: 0 | AE25: 0 | AF25: 0 | AG25: 0 | AH25: 0 | AI25: 0 | AJ25: 0 | AK25: 0 | AL25: 6156 | AM25: 0 | AN25: 0 | AO25: 7.6 | AP25: 0 | AQ25: 1 | AR25: 0.406779661 | AS25: 0 | AT25: 3 | AU25: 0 | AV25: 0 | AW25: 0 | AX25: 0 | AY25: 0 | AZ25: 0 | BA25: 0 | BB25: 0 | BC25: 0 | BD25: 0 | BE25: 0 | BF25: 0 | BG25: 0 | BH25: 0 | BI25: 0 | BJ25: 0 | BK25: 5 | BL25: 10465.7714 | BM25: 17140.81564 | BN25: 14900.46654 | BO25: 22290.85839 | BP25: 17954.72481 | BQ25: 2038.908856 | BR25: 0 | BS25: 0 | BT25: 0 | BU25: 0 | BV25: 0 | BW25: 10570.42912 | BX25: 17312.2238 | BY25: 15049.47121 | BZ25: 22513.76697 | CA25: 18134.27206 | CB25: 2044.162251 | CC25: 0 | CD25: 0 | CE25: 0 | CF25: 0 | CG25: 0
B26: 7070 | C26: Oakley School | D26: 182 | E26: 171 | F26: 30 | G26: 40 | H26: 0 | I26: 0 | J26: 0 | K26: 0 | L26: 13700.99508 | M26: 13747.34431 | N26: 13563.25159 | O26: 21264.83803 | P26: 21311.18726 | Q26: 21052.205 | R26: 20442.78977 | S26: 20489.13899 | T26: 20238.29583 | U26: 18180.03718 | V26: 18226.3864 | W26: 17997.94673 | X26: 25644.33294 | Y26: 25690.68217 | Z26: 25388.33858 | AB26: 17842.64054 | AC26: 17020.59227 | AD26: 0 | AE26: 0 | AF26: 0 | AG26: 0 | AH26: 0 | AI26: 0 | AJ26: 0 | AK26: 0 | AL26: 4287 | AM26: 0 | AN26: 0 | AO26: 11.4161 | AP26: 0 | AQ26: 0 | AR26: 0.4529411765 | AS26: 0 | AT26: 0 | AU26: 1 | AV26: 0 | AW26: 0 | AX26: 0 | AY26: 0 | AZ26: 0 | BA26: 0 | BB26: 0 | BC26: 0 | BD26: 0 | BE26: 0 | BF26: 0 | BG26: 0 | BH26: 0 | BI26: 0 | BJ26: 0 | BK26: 12 | BL26: 10465.7714 | BM26: 17140.81564 | BN26: 14900.46654 | BO26: 22290.85839 | BP26: 17954.72481 | BQ26: 3097.48019 | BR26: 0 | BS26: 0 | BT26: 0 | BU26: 0 | BV26: 0 | BW26: 10570.42912 | BX26: 17312.2238 | BY26: 15049.47121 | BZ26: 22513.76697 | CA26: 18134.27206 | CB26: 3157.603018 | CC26: 0 | CD26: 0 | CE26: 0 | CF26: 0 | CG26: 0
B27: 7072 | C27: Meadowfield School | D27: 326 | E27: 328 | F27: 63 | G27: 62 | H27: 0 | I27: 0 | J27: 0 | K27: 0 | L27: 12746.44476 | M27: 12762.6729 | N27: 12607.08808 | O27: 20310.2877 | P27: 20326.51585 | Q27: 20096.04149 | R27: 19488.23944 | S27: 19504.46759 | T27: 19282.13232 | U27: 17225.48685 | V27: 17241.715 | W27: 17041.78322 | X27: 24689.78262 | Y27: 24706.01076 | Z27: 24432.17507 | AB27: 17842.64054 | AC27: 17020.59227 | AD27: 0 | AE27: 0 | AF27: 0 | AG27: 0 | AH27: 0 | AI27: 0 | AJ27: 0 | AK27: 0 | AL27: 8934.58 | AM27: 0 | AN27: 0 | AO27: 2.563 | AP27: 13000 | AQ27: 1 | AR27: 0.509375 | AS27: 0 | AT27: 2 | AU27: 0 | AV27: 0 | AW27: 0 | AX27: 0 | AY27: 0 | AZ27: 0 | BA27: 0 | BB27: 0 | BC27: 0 | BD27: 0 | BE27: 0 | BF27: 0 | BG27: 0 | BH27: 0 | BI27: 0 | BJ27: 0 | BK27: 6 | BL27: 10465.7714 | BM27: 17140.81564 | BN27: 14900.46654 | BO27: 22290.85839 | BP27: 17954.72481 | BQ27: 2141.316676 | BR27: 0 | BS27: 0 | BT27: 0 | BU27: 0 | BV27: 0 | BW27: 10570.42912 | BX27: 17312.2238 | BY27: 15049.47121 | BZ27: 22513.76697 | CA27: 18134.27206 | CB27: 2185.482062 | CC27: 0 | CD27: 0 | CE27: 0 | CF27: 0 | CG27: 0
B28: 7073 | C28: Laleham Gap School | D28: 193 | E28: 193 | F28: 14 | G28: 14 | H28: 0 | I28: 0 | J28: 0 | K28: 0 | L28: 13534.4927 | M28: 13602.9356 | N28: 13414.10196 | O28: 21098.33565 | P28: 21166.77855 | Q28: 20903.05537 | R28: 20276.28738 | S28: 20344.73029 | T28: 20089.1462 | U28: 18013.53479 | V28: 18081.9777 | W28: 17848.7971 | X28: 25477.83056 | Y28: 25546.27346 | Z28: 25239.18895 | AB28: 17842.64054 | AC28: 17020.59227 | AD28: 0 | AE28: 0 | AF28: 0 | AG28: 0 | AH28: 0 | AI28: 0 | AJ28: 0 | AK28: 0 | AL28: 4885 | AM28: 0 | AN28: 0 | AO28: 2.5697 | AP28: 0 | AQ28: 0 | AR28: 0.3802816901 | AS28: 0 | AT28: 0 | AU28: 0 | AV28: 0 | AW28: 0 | AX28: 0 | AY28: 0 | AZ28: 0 | BA28: 0 | BB28: 0 | BC28: 0 | BD28: 0 | BE28: 0 | BF28: 0 | BG28: 0 | BH28: 0 | BI28: 0 | BJ28: 0 | BK28: 0 | BL28: 10465.7714 | BM28: 17140.81564 | BN28: 14900.46654 | BO28: 22290.85839 | BP28: 17954.72481 | BQ28: 2948.330562 | BR28: 0 | BS28: 0 | BT28: 0 | BU28: 0 | BV28: 0 | BW28: 10570.42912 | BX28: 17312.2238 | BY28: 15049.47121 | BZ28: 22513.76697 | CA28: 18134.27206 | CB28: 3003.988613 | CC28: 0 | CD28: 0 | CE28: 0 | CF28: 0 | CG28: 0

Sheet Firing Range (hidden)
A1: =COUNTIF(B1:AT1,">0")-22 -> 1 | C1: 7032 | D1: =COUNTIF(D2:D108,">0") -> 0 | E1: 7033 | F1: =COUNTIF(F2:F108,">0") -> 0 | G1: 7044 | H1: =COUNTIF(H2:H108,">0") -> 0 | I1: 7045 | J1: =COUNTIF(J2:J108,">0") -> 0 | K1: 7062 | L1: =COUNTIF(L2:L108,">0") -> 0 | M1: 7041 | N1: =COUNTIF(N2:N108,">0") -> 0 | O1: 7067 | P1: =COUNTIF(P2:P108,">0") -> 0 | Q1: 7021 | R1: =COUNTIF(R2:R108,">0") -> 0 | S1: 7002 | T1: =COUNTIF(T2:T108,">0") -> 0 | U1: 7052 | V1: =COUNTIF(V2:V108,">0") -> 0 | W1: 7058 | X1: =COUNTIF(X2:X108,">0") -> 0 | Y1: 7073 | Z1: =COUNTIF(Z2:Z108,">0") -> 0 | AA1: 7039 | AB1: =COUNTIF(AB2:AB108,">0") -> 0 | AC1: 7040 | AD1: =COUNTIF(AD2:AD108,">0") -> 0 | AE1: 7043 | AF1: =COUNTIF(AF2:AF108,">0") -> 0 | AG1: 7051 | AH1: =COUNTIF(AH2:AH108,">0") -> 1 | AI1: 7056 | AJ1: =COUNTIF(AJ2:AJ108,">0") -> 0 | AK1: 7063 | AL1: =COUNTIF(AL2:AL108,">0") -> 0 | AM1: 7066 | AN1: =COUNTIF(AN2:AN108,">0") -> 0 | AO1: 7069 | AP1: =COUNTIF(AP2:AP108,">0") -> 0 | AQ1: 7070 | AR1: =COUNTIF(AR2:AR108,">0") -> 0 | AS1: 7072 | AT1: =COUNTIF(AT2:AT108,">0") -> 0 | AU1: 7005 | AV1: =COUNTIF(AV2:AV108,">0") -> 0 | AW1: 7006 | AX1: =COUNTIF(AX2:AX108,">0") -> 0
A2: DFENUM | B2: ='Special Rates 2025-26'!DFENUM -> 0 | C2: 7032 | D2: =IF(C2=C1,0,1) -> 0 | E2: 7033 | F2: =IF(E2=E1,0,1) -> 0 | G2: 7044 | H2: =IF(G2=G1,0,1) -> 0 | I2: 7045 | J2: =IF(I2=I1,0,1) -> 0 | K2: 7062 | L2: =IF(K2=K1,0,1) -> 0 | M2: 7041 | N2: =IF(M2=M1,0,1) -> 0 | O2: 7067 | P2: =IF(O2=O1,0,1) -> 0 | Q2: 7021 | R2: =IF(Q2=Q1,0,1) -> 0 | S2: 7002 | T2: =IF(S2=S1,0,1) -> 0 | U2: 7052 | V2: =IF(U2=U1,0,1) -> 0 | W2: 7058 | X2: =IF(W2=W1,0,1) -> 0 | Y2: 7073 | Z2: =IF(Y2=Y1,0,1) -> 0 | AA2: 7039 | AB2: =IF(AA2=AA1,0,1) -> 0 | AC2: 7040 | AD2: =IF(AC2=AC1,0,1) -> 0 | AE2: 7043 | AF2: =IF(AE2=AE1,0,1) -> 0 | AG2: 7051 | AH2: =IF(AG2=AG1,0,1) -> 0 | AI2: 7056 | AJ2: =IF(AI2=AI1,0,1) -> 0 | AK2: 7063 | AL2: =IF(AK2=AK1,0,1) -> 0 | AM2: 7066 | AN2: =IF(AM2=AM1,0,1) -> 0 | AO2: 7069 | AP2: =IF(AO2=AO1,0,1) -> 0 | AQ2: 7070 | AR2: =IF(AQ2=AQ1,0,1) -> 0 | AS2: 7072 | AT2: =IF(AS2=AS1,0,1) -> 0 | AU2: 7005 | AV2: =IF(AU2=AU1,0,1) -> 0 | AW2: 7006 | AX2: =IF(AW2=AW1,0,1) -> 0
A3: NAME | B3: =[0]!NAME ->  | C3: Bower Grove School | D3: 0 | E3: St Anthony's School | F3: 0 | G3: Rowhill School | H3: 0 | I3: Elms School | J3: 0 | K3: The Orchard School | L3: 0 | M3: Goldwyn School | N3: 0 | O3: Portal House School | P3: 0 | Q3: Valence School | R3: 0 | S3: Broomhill Bank School | T3: 0 | U3: Grange Park School | V3: 0 | W3: Stone Bay School | X3: 0 | Y3: Laleham Gap School | Z3: 0 | AA3: The Ifield School | AB3: 0 | AC3: Foreland Fields School | AD3: 0 | AE3: The Beacon Folkestone | AF3: 0 | AG3: Nexus School | AH3: 0 | AI3: Five Acre Wood School | AJ3: 0 | AK3: St Nicholas' School | AL3: 0 | AM3: Milestone Academy | AN3: 0 | AO3: The Wyvern School | AP3: 0 | AQ3: Oakley School | AR3: 0 | AS3: Meadowfield School | AT3: 0 | AU3: Aspire School | AV3: 0 | AW3: Snowfields Academy | AX3: 0
A4: preold | B4: =[0]!preold -> 0 | C4: 225 | D4: 0 | E4: 98 | F4: 0 | G4: 150 | H4: 0 | I4: 152 | J4: 0 | K4: 100 | L4: 0 | M4: 160 | N4: 0 | O4: 80 | P4: 0 | Q4: 85 | R4: 0 | S4: 280 | T4: 0 | U4: 136 | V4: 0 | W4: 95 | X4: 0 | Y4: 193 | Z4: 0 | AA4: 221 | AB4: 0 | AC4: 210 | AD4: 0 | AE4: 324 | AF4: 0 | AG4: 256 | AH4: 1 | AI4: 728 | AJ4: 0 | AK4: 297 | AL4: 0 | AM4: 288 | AN4: 0 | AO4: 308 | AP4: 0 | AQ4: 182 | AR4: 0 | AS4: 326 | AT4: 0 | AU4: 174 | AV4: 0 | AW4: 276 | AX4: 0
A5: postold | B5: =[0]!postold -> 0 | C5: 0 | D5: 0 | E5: 0 | F5: 0 | G5: 0 | H5: 0 | I5: 0 | J5: 0 | K5: 0 | L5: 0 | M5: 35 | N5: 0 | O5: 0 | P5: 0 | Q5: 30 | R5: 0 | S5: 113 | T5: 0 | U5: 75 | V5: 0 | W5: 8 | X5: 0 | Y5: 14 | Z5: 0 | AA5: 45 | AB5: 0 | AC5: 34 | AD5: 0 | AE5: 84 | AF5: 0 | AG5: 39 | AH5: 0 | AI5: 110 | AJ5: 0 | AK5: 43 | AL5: 0 | AM5: 75 | AN5: 0 | AO5: 44 | AP5: 0 | AQ5: 30 | AR5: 0 | AS5: 63 | AT5: 0 | AU5: 0 | AV5: 0 | AW5: 48 | AX5: 0
A6: weekdayold | B6: =[0]!weekdayold -> 0 | C6: 0 | D6: 0 | E6: 0 | F6: 0 | G6: 0 | H6: 0 | I6: 0 | J6: 0 | K6: 0 | L6: 0 | M6: 0 | N6: 0 | O6: 0 | P6: 0 | Q6: 46 | R6: 0 | S6: 23 | T6: 0 | U6: 0 | V6: 0 | W6: 10 | X6: 0 | Y6: 0 | Z6: 0 | AA6: 0 | AB6: 0 | AC6: 0 | AD6: 0 | AE6: 0 | AF6: 0 | AG6: 0 | AH6: 0 | AI6: 0 | AJ6: 0 | AK6: 0 | AL6: 0 | AM6: 0 | AN6: 0 | AO6: 0 | AP6: 0 | AQ6: 0 | AR6: 0 | AS6: 0 | AT6: 0 | AU6: 0 | AV6: 0 | AW6: 0 | AX6: 0
A7: weekendold | B7: =[0]!weekendold -> 0 | C7: 0 | D7: 0 | E7: 0 | F7: 0 | G7: 0 | H7: 0 | I7: 0 | J7: 0 | K7: 0 | L7: 0 | M7: 0 | N7: 0 | O7: 0 | P7: 0 | Q7: 18 | R7: 0 | S7: 0 | T7: 0 | U7: 0 | V7: 0 | W7: 0 | X7: 0 | Y7: 0 | Z7: 0 | AA7: 0 | AB7: 0 | AC7: 0 | AD7: 0 | AE7: 0 | AF7: 0 | AG7: 0 | AH7: 0 | AI7: 0 | AJ7: 0 | AK7: 0 | AL7: 0 | AM7: 0 | AN7: 0 | AO7: 0 | AP7: 0 | AQ7: 0 | AR7: 0 | AS7: 0 | AT7: 0 | AU7: 0 | AV7: 0 | AW7: 0 | AX7: 0
A8: prenew | B8: =[0]!prenew -> 0 | C8: 225 | D8: 0 | E8: 98 | F8: 0 | G8: 150 | H8: 0 | I8: 152 | J8: 0 | K8: 100 | L8: 0 | M8: 160 | N8: 0 | O8: 80 | P8: 0 | Q8: 85 | R8: 0 | S8: 300 | T8: 0 | U8: 136 | V8: 0 | W8: 84 | X8: 0 | Y8: 193 | Z8: 0 | AA8: 211 | AB8: 0 | AC8: 210 | AD8: 0 | AE8: 373 | AF8: 0 | AG8: 274 | AH8: 0 | AI8: 690 | AJ8: 0 | AK8: 304 | AL8: 0 | AM8: 283 | AN8: 0 | AO8: 302 | AP8: 0 | AQ8: 171 | AR8: 0 | AS8: 328 | AT8: 0 | AU8: 189 | AV8: 0 | AW8: 312 | AX8: 0
A9: postnew | B9: =[0]!postnew -> 0 | C9: 0 | D9: 0 | E9: 0 | F9: 0 | G9: 0 | H9: 0 | I9: 0 | J9: 0 | K9: 0 | L9: 0 | M9: 35 | N9: 0 | O9: 0 | P9: 0 | Q9: 30 | R9: 0 | S9: 118 | T9: 0 | U9: 64 | V9: 0 | W9: 19 | X9: 0 | Y9: 14 | Z9: 0 | AA9: 55 | AB9: 0 | AC9: 32 | AD9: 0 | AE9: 75 | AF9: 0 | AG9: 54 | AH9: 0 | AI9: 122 | AJ9: 0 | AK9: 56 | AL9: 0 | AM9: 80 | AN9: 0 | AO9: 58 | AP9: 0 | AQ9: 40 | AR9: 0 | AS9: 62 | AT9: 0 | AU9: 0 | AV9: 0 | AW9: 36 | AX9: 0
A10: weekdaynew | B10: =[0]!weekdaynew -> 0 | C10: 0 | D10: 0 | E10: 0 | F10: 0 | G10: 0 | H10: 0 | I10: 0 | J10: 0 | K10: 0 | L10: 0 | M10: 0 | N10: 0 | O10: 0 | P10: 0 | Q10: 46 | R10: 0 | S10: 23 | T10: 0 | U10: 0 | V10: 0 | W10: 10 | X10: 0 | Y10: 0 | Z10: 0 | AA10: 0 | AB10: 0 | AC10: 0 | AD10: 0 | AE10: 0 | AF10: 0 | AG10: 0 | AH10: 0 | AI10: 0 | AJ10: 0 | AK10: 0 | AL10: 0 | AM10: 0 | AN10: 0 | AO10: 0 | AP10: 0 | AQ10: 0 | AR10: 0 | AS10: 0 | AT10: 0 | AU10: 0 | AV10: 0 | AW10: 0 | AX10: 0
A11: weekendnew | B11: =[0]!weekendnew -> 0 | C11: 0 | D11: 0 | E11: 0 | F11: 0 | G11: 0 | H11: 0 | I11: 0 | J11: 0 | K11: 0 | L11: 0 | M11: 0 | N11: 0 | O11: 0 | P11: 0 | Q11: 18 | R11: 0 | S11: 0 | T11: 0 | U11: 0 | V11: 0 | W11: 0 | X11: 0 | Y11: 0 | Z11: 0 | AA11: 0 | AB11: 0 | AC11: 0 | AD11: 0 | AE11: 0 | AF11: 0 | AG11: 0 | AH11: 0 | AI11: 0 | AJ11: 0 | AK11: 0 | AL11: 0 | AM11: 0 | AN11: 0 | AO11: 0 | AP11: 0 | AQ11: 0 | AR11: 0 | AS11: 0 | AT11: 0 | AU11: 0 | AV11: 0 | AW11: 0 | AX11: 0
A12: mldold | B12: =[0]!mldold -> 0 | C12: 13420.80353 | D12: 0 | E12: 16476.37243 | F12: 0 | G12: 14826.7489 | H12: 0 | I12: 14363.26664 | J12: 0 | K12: 15966.40621 | L12: 0 | M12: 15365.47618 | N12: 0 | O12: 17752.63286 | P12: 0 | Q12: 17475.60993 | R12: 0 | S12: 13071.54279 | T12: 0 | U12: 13181.62327 | V12: 0 | W12: 15782.69481 | X12: 0 | Y12: 13534.4927 | Z12: 0 | AA12: 13271.01863 | AB12: 0 | AC12: 13630.75176 | AD12: 0 | AE12: 12860.2945 | AF12: 0 | AG12: 13184.75349 | AH12: 0 | AI12: 11795.8463 | AJ12: 0 | AK12: 13328.83226 | AL12: 0 | AM12: 13154.46808 | AN12: 0 | AO12: 12631.47149 | AP12: 0 | AQ12: 13700.99508 | AR12: 0 | AS12: 12746.44476 | AT12: 0 | AU12: 13809.65311 | AV12: 0 | AW12: 13004.26785 | AX12: 0
A13: besdold | B13: =[0]!besdold -> 0 | C13: 20162.59821 | D13: 0 | E13: 23218.16712 | F13: 0 | G13: 21630.66962 | H13: 0 | I13: 21105.06132 | J13: 0 | K13: 22708.20089 | L13: 0 | M13: 22107.27086 | N13: 0 | O13: 24494.42754 | P13: 0 | Q13: 24270.83306 | R13: 0 | S13: 19829.62664 | T13: 0 | U13: 19923.41795 | V13: 0 | W13: 22524.48949 | X13: 0 | Y13: 20276.28738 | Z13: 0 | AA13: 20012.81331 | AB13: 0 | AC13: 20372.54644 | AD13: 0 | AE13: 19602.08918 | AF13: 0 | AG13: 19926.54817 | AH13: 0 | AI13: 18537.64098 | AJ13: 0 | AK13: 20070.62694 | AL13: 0 | AM13: 19949.69122 | AN13: 0 | AO13: 19373.26617 | AP13: 0 | AQ13: 20442.78977 | AR13: 0 | AS13: 19488.23944 | AT13: 0 | AU13: 20551.44779 | AV13: 0 | AW13: 19746.06253 | AX13: 0
A14: sldold | B14: =[0]!sldold -> 0 | C14: 17899.84562 | D14: 0 | E14: 20955.41453 | F14: 0 | G14: 19392.82656 | H14: 0 | I14: 18842.30873 | J14: 0 | K14: 20445.4483 | L14: 0 | M14: 19844.51827 | N14: 0 | O14: 22231.67495 | P14: 0 | Q14: 22041.68759 | R14: 0 | S14: 17577.12012 | T14: 0 | U14: 17660.66536 | V14: 0 | W14: 20261.7369 | X14: 0 | Y14: 18013.53479 | Z14: 0 | AA14: 17750.06072 | AB14: 0 | AC14: 18109.79385 | AD14: 0 | AE14: 17339.33659 | AF14: 0 | AG14: 17663.79558 | AH14: 0 | AI14: 16274.88839 | AJ14: 0 | AK14: 17807.87435 | AL14: 0 | AM14: 17720.54575 | AN14: 0 | AO14: 17110.51358 | AP14: 0 | AQ14: 18180.03718 | AR14: 0 | AS14: 17225.48685 | AT14: 0 | AU14: 18288.6952 | AV14: 0 | AW14: 17483.30994 | AX14: 0
A15: pdold | B15: =[0]!pdold -> 0 | C15: 25364.14139 | D15: 0 | E15: 28419.71029 | F15: 0 | G15: 27002.07546 | H15: 0 | I15: 26306.6045 | J15: 0 | K15: 27909.74407 | L15: 0 | M15: 27308.81403 | N15: 0 | O15: 29695.97071 | P15: 0 | Q15: 29650.93649 | R15: 0 | S15: 25085.60892 | T15: 0 | U15: 25124.96113 | V15: 0 | W15: 27726.03266 | X15: 0 | Y15: 25477.83056 | Z15: 0 | AA15: 25214.35648 | AB15: 0 | AC15: 25574.08962 | AD15: 0 | AE15: 24803.63236 | AF15: 0 | AG15: 25128.09134 | AH15: 0 | AI15: 23739.18416 | AJ15: 0 | AK15: 25272.17011 | AL15: 0 | AM15: 25329.79465 | AN15: 0 | AO15: 24574.80935 | AP15: 0 | AQ15: 25644.33294 | AR15: 0 | AS15: 24689.78262 | AT15: 0 | AU15: 25752.99096 | AV15: 0 | AW15: 24947.60571 | AX15: 0
A16: asdold | B16: =[0]!asdold -> 0 | C16: 20162.59821 | D16: 0 | E16: 23218.16712 | F16: 0 | G16: 21706.20126 | H16: 0 | I16: 21105.06132 | J16: 0 | K16: 22708.20089 | L16: 0 | M16: 22107.27086 | N16: 0 | O16: 24494.42754 | P16: 0 | Q16: 24355.06229 | R16: 0 | S16: 20682.0168 | T16: 0 | U16: 20745.46621 | V16: 0 | W16: 30744.97212 | X16: 0 | Y16: 21098.33565 | Z16: 0 | AA16: 20834.86157 | AB16: 0 | AC16: 21194.59471 | AD16: 0 | AE16: 20424.13745 | AF16: 0 | AG16: 20748.59643 | AH16: 0 | AI16: 19359.68924 | AJ16: 0 | AK16: 20892.6752 | AL16: 0 | AM16: 20871.26091 | AN16: 0 | AO16: 20195.31443 | AP16: 0 | AQ16: 21264.83803 | AR16: 0 | AS16: 20310.2877 | AT16: 0 | AU16: 21373.49605 | AV16: 0 | AW16: 20568.11079 | AX16: 0
A17: pdweekdayold | B17: =[0]!pdweekdayold -> 0 | C17: 0 | D17: 0 | E17: 0 | F17: 0 | G17: 0 | H17: 0 | I17: 0 | J17: 0 | K17: 0 | L17: 0 | M17: 0 | N17: 0 | O17: 0 | P17: 0 | Q17: 82902.82484 | R17: 0 | S17: 0 | T17: 0 | U17: 0 | V17: 0 | W17: 91421.17345 | X17: 0 | Y17: 0 | Z17: 0 | AA17: 0 | AB17: 0 | AC17: 0 | AD17: 0 | AE17: 0 | AF17: 0 | AG17: 0 | AH17: 0 | AI17: 0 | AJ17: 0 | AK17: 0 | AL17: 0 | AM17: 0 | AN17: 0 | AO17: 0 | AP17: 0 | AQ17: 0 | AR17: 0 | AS17: 0 | AT17: 0 | AU17: 0 | AV17: 0 | AW17: 0 | AX17: 0
A18: asdweekdayold | B18: =[0]!asdweekdayold -> 0 | C18: 0 | D18: 0 | E18: 0 | F18: 0 | G18: 0 | H18: 0 | I18: 0 | J18: 0 | K18: 0 | L18: 0 | M18: 0 | N18: 0 | O18: 0 | P18: 0 | Q18: 0 | R18: 0 | S18: 61330.60278 | T18: 0 | U18: 0 | V18: 0 | W18: 94440.1129 | X18: 0 | Y18: 0 | Z18: 0 | AA18: 0 | AB18: 0 | AC18: 0 | AD18: 0 | AE18: 0 | AF18: 0 | AG18: 0 | AH18: 0 | AI18: 0 | AJ18: 0 | AK18: 0 | AL18: 0 | AM18: 0 | AN18: 0 | AO18: 0 | AP18: 0 | AQ18: 0 | AR18: 0 | AS18: 0 | AT18: 0 | AU18: 0 | AV18: 0 | AW18: 0 | AX18: 0
A19: pdweekendold | B19: =[0]!pdweekendold -> 0 | C19: 0 | D19: 0 | E19: 0 | F19: 0 | G19: 0 | H19: 0 | I19: 0 | J19: 0 | K19: 0 | L19: 0 | M19: 0 | N19: 0 | O19: 0 | P19: 0 | Q19: 111639.0702 | R19: 0 | S19: 0 | T19: 0 | U19: 0 | V19: 0 | W19: 0 | X19: 0 | Y19: 0 | Z19: 0 | AA19: 0 | AB19: 0 | AC19: 0 | AD19: 0 | AE19: 0 | AF19: 0 | AG19: 0 | AH19: 0 | AI19: 0 | AJ19: 0 | AK19: 0 | AL19: 0 | AM19: 0 | AN19: 0 | AO19: 0 | AP19: 0 | AQ19: 0 | AR19: 0 | AS19: 0 | AT19: 0 | AU19: 0 | AV19: 0 | AW19: 0 | AX19: 0
A20: mldnew | B20: =[0]!mldnew -> 0 | C20: 13431.62508 | D20: 0 | E20: 16471.00235 | F20: 0 | G20: 14830.92466 | H20: 0 | I20: 14345.55021 | J20: 0 | K20: 15979.6949 | L20: 0 | M20: 15378.96447 | N20: 0 | O20: 17751.87989 | P20: 0 | Q20: 17486.36531 | R20: 0 | S20: 12939.23842 | T20: 0 | U20: 13322.08135 | V20: 0 | W20: 15781.74396 | X20: 0 | Y20: 13602.9356 | Z20: 0 | AA20: 13264.41031 | AB20: 0 | AC20: 13668.2634 | AD20: 0 | AE20: 12679.43285 | AF20: 0 | AG20: 12947.33161 | AH20: 0 | AI20: 11834.34337 | AJ20: 0 | AK20: 13214.65405 | AL20: 0 | AM20: 13165.83184 | AN20: 0 | AO20: 12602.53414 | AP20: 0 | AQ20: 13747.34431 | AR20: 0 | AS20: 12762.6729 | AT20: 0 | AU20: 13566.54642 | AV20: 0 | AW20: 12852.72601 | AX20: 0
A21: besdnew | B21: =[0]!besdnew -> 0 | C21: 20173.41976 | D21: 0 | E21: 23212.79703 | F21: 0 | G21: 21634.84538 | H21: 0 | I21: 21087.34489 | J21: 0 | K21: 22721.48958 | L21: 0 | M21: 22120.75915 | N21: 0 | O21: 24493.67457 | P21: 0 | Q21: 24281.58845 | R21: 0 | S21: 19697.32227 | T21: 0 | U21: 20063.87604 | V21: 0 | W21: 22523.53864 | X21: 0 | Y21: 20344.73029 | Z21: 0 | AA21: 20006.20499 | AB21: 0 | AC21: 20410.05808 | AD21: 0 | AE21: 19421.22753 | AF21: 0 | AG21: 19689.12629 | AH21: 0 | AI21: 18576.13805 | AJ21: 0 | AK21: 19956.44873 | AL21: 0 | AM21: 19961.05497 | AN21: 0 | AO21: 19344.32882 | AP21: 0 | AQ21: 20489.13899 | AR21: 0 | AS21: 19504.46759 | AT21: 0 | AU21: 20308.3411 | AV21: 0 | AW21: 19594.52069 | AX21: 0
A22: sldnew | B22: =[0]!sldnew -> 0 | C22: 17910.66717 | D22: 0 | E22: 20950.04444 | F22: 0 | G22: 19397.00233 | H22: 0 | I22: 18824.5923 | J22: 0 | K22: 20458.73699 | L22: 0 | M22: 19858.00656 | N22: 0 | O22: 22230.92198 | P22: 0 | Q22: 22052.44298 | R22: 0 | S22: 17444.81575 | T22: 0 | U22: 17801.12345 | V22: 0 | W22: 20260.78605 | X22: 0 | Y22: 18081.9777 | Z22: 0 | AA22: 17743.4524 | AB22: 0 | AC22: 18147.30549 | AD22: 0 | AE22: 17158.47494 | AF22: 0 | AG22: 17426.3737 | AH22: 0 | AI22: 16313.38546 | AJ22: 0 | AK22: 17693.69614 | AL22: 0 | AM22: 17731.9095 | AN22: 0 | AO22: 17081.57623 | AP22: 0 | AQ22: 18226.3864 | AR22: 0 | AS22: 17241.715 | AT22: 0 | AU22: 18045.58851 | AV22: 0 | AW22: 17331.7681 | AX22: 0
A23: pdnew | B23: =[0]!pdnew -> 0 | C23: 25374.96294 | D23: 0 | E23: 28414.3402 | F23: 0 | G23: 27006.25123 | H23: 0 | I23: 26288.88807 | J23: 0 | K23: 27923.03275 | L23: 0 | M23: 27322.30233 | N23: 0 | O23: 29695.21775 | P23: 0 | Q23: 29661.69188 | R23: 0 | S23: 24953.30455 | T23: 0 | U23: 25265.41921 | V23: 0 | W23: 27725.08182 | X23: 0 | Y23: 25546.27346 | Z23: 0 | AA23: 25207.74816 | AB23: 0 | AC23: 25611.60126 | AD23: 0 | AE23: 24622.77071 | AF23: 0 | AG23: 24890.66947 | AH23: 0 | AI23: 23777.68123 | AJ23: 0 | AK23: 25157.99191 | AL23: 0 | AM23: 25341.1584 | AN23: 0 | AO23: 24545.872 | AP23: 0 | AQ23: 25690.68217 | AR23: 0 | AS23: 24706.01076 | AT23: 0 | AU23: 25509.88427 | AV23: 0 | AW23: 24796.06387 | AX23: 0
A24: asdnew | B24: =[0]!asdnew -> 0 | C24: 20173.41976 | D24: 0 | E24: 23212.79703 | F24: 0 | G24: 21710.37702 | H24: 0 | I24: 21087.34489 | J24: 0 | K24: 22721.48958 | L24: 0 | M24: 22120.75915 | N24: 0 | O24: 24493.67457 | P24: 0 | Q24: 24365.81767 | R24: 0 | S24: 20549.71243 | T24: 0 | U24: 20885.9243 | V24: 0 | W24: 30744.02127 | X24: 0 | Y24: 21166.77855 | Z24: 0 | AA24: 20828.25325 | AB24: 0 | AC24: 21232.10635 | AD24: 0 | AE24: 20243.2758 | AF24: 0 | AG24: 20511.17455 | AH24: 0 | AI24: 19398.18632 | AJ24: 0 | AK24: 20778.497 | AL24: 0 | AM24: 20882.62467 | AN24: 0 | AO24: 20166.37708 | AP24: 0 | AQ24: 21311.18726 | AR24: 0 | AS24: 20326.51585 | AT24: 0 | AU24: 21130.38936 | AV24: 0 | AW24: 20416.56895 | AX24: 0
A25: pdweekdaynew | B25: =[0]!pdweekdaynew -> 0 | C25: 0 | D25: 0 | E25: 0 | F25: 0 | G25: 0 | H25: 0 | I25: 0 | J25: 0 | K25: 0 | L25: 0 | M25: 0 | N25: 0 | O25: 0 | P25: 0 | Q25: 82913.58022 | R25: 0 | S25: 0 | T25: 0 | U25: 0 | V25: 0 | W25: 91420.2226 | X25: 0 | Y25: 0 | Z25: 0 | AA25: 0 | AB25: 0 | AC25: 0 | AD25: 0 | AE25: 0 | AF25: 0 | AG25: 0 | AH25: 0 | AI25: 0 | AJ25: 0 | AK25: 0 | AL25: 0 | AM25: 0 | AN25: 0 | AO25: 0 | AP25: 0 | AQ25: 0 | AR25: 0 | AS25: 0 | AT25: 0 | AU25: 0 | AV25: 0 | AW25: 0 | AX25: 0
A26: asdweekdaynew | B26: =[0]!asdweekdaynew -> 0 | C26: 0 | D26: 0 | E26: 0 | F26: 0 | G26: 0 | H26: 0 | I26: 0 | J26: 0 | K26: 0 | L26: 0 | M26: 0 | N26: 0 | O26: 0 | P26: 0 | Q26: 0 | R26: 0 | S26: 61198.29841 | T26: 0 | U26: 0 | V26: 0 | W26: 94439.16206 | X26: 0 | Y26: 0 | Z26: 0 | AA26: 0 | AB26: 0 | AC26: 0 | AD26: 0 | AE26: 0 | AF26: 0 | AG26: 0 | AH26: 0 | AI26: 0 | AJ26: 0 | AK26: 0 | AL26: 0 | AM26: 0 | AN26: 0 | AO26: 0 | AP26: 0 | AQ26: 0 | AR26: 0 | AS26: 0 | AT26: 0 | AU26: 0 | AV26: 0 | AW26: 0 | AX26: 0
A27: pdweekendnew | B27: =[0]!pdweekendnew -> 0 | C27: 0 | D27: 0 | E27: 0 | F27: 0 | G27: 0 | H27: 0 | I27: 0 | J27: 0 | K27: 0 | L27: 0 | M27: 0 | N27: 0 | O27: 0 | P27: 0 | Q27: 111649.8256 | R27: 0 | S27: 0 | T27: 0 | U27: 0 | V27: 0 | W27: 0 | X27: 0 | Y27: 0 | Z27: 0 | AA27: 0 | AB27: 0 | AC27: 0 | AD27: 0 | AE27: 0 | AF27: 0 | AG27: 0 | AH27: 0 | AI27: 0 | AJ27: 0 | AK27: 0 | AL27: 0 | AM27: 0 | AN27: 0 | AO27: 0 | AP27: 0 | AQ27: 0 | AR27: 0 | AS27: 0 | AT27: 0 | AU27: 0 | AV27: 0 | AW27: 0 | AX27: 0
A28: mldyear | B28: =[0]!mldyear -> 0 | C28: 13427.1161 | D28: 0 | E28: 16473.23988 | F28: 0 | G28: 14829.18476 | H28: 0 | I28: 14352.93206 | J28: 0 | K28: 15974.15794 | L28: 0 | M28: 15373.34435 | N28: 0 | O28: 17752.19363 | P28: 0 | Q28: 17481.8839 | R28: 0 | S28: 12994.36524 | T28: 0 | U28: 13263.55715 | V28: 0 | W28: 15782.14014 | X28: 0 | Y28: 13574.41773 | Z28: 0 | AA28: 13267.16377 | AB28: 0 | AC28: 13652.63355 | AD28: 0 | AE28: 12754.79187 | AF28: 0 | AG28: 13046.25739 | AH28: 0 | AI28: 11818.30292 | AJ28: 0 | AK28: 13262.2283 | AL28: 0 | AM28: 13161.09694 | AN28: 0 | AO28: 12614.59137 | AP28: 0 | AQ28: 13728.03213 | AR28: 0 | AS28: 12755.91118 | AT28: 0 | AU28: 13667.84087 | AV28: 0 | AW28: 12915.86844 | AX28: 0
A29: besdyear | B29: =[0]!besdyear -> 0 | C29: 20168.91078 | D29: 0 | E29: 23215.03456 | F29: 0 | G29: 21633.10548 | H29: 0 | I29: 21094.72674 | J29: 0 | K29: 22715.95262 | L29: 0 | M29: 22115.13903 | N29: 0 | O29: 24493.98831 | P29: 0 | Q29: 24277.10704 | R29: 0 | S29: 19752.44909 | T29: 0 | U29: 20005.35183 | V29: 0 | W29: 22523.93483 | X29: 0 | Y29: 20316.21241 | Z29: 0 | AA29: 20008.95845 | AB29: 0 | AC29: 20394.42823 | AD29: 0 | AE29: 19496.58655 | AF29: 0 | AG29: 19788.05207 | AH29: 0 | AI29: 18560.09761 | AJ29: 0 | AK29: 20004.02298 | AL29: 0 | AM29: 19956.32008 | AN29: 0 | AO29: 19356.38605 | AP29: 0 | AQ29: 20469.82681 | AR29: 0 | AS29: 19497.70586 | AT29: 0 | AU29: 20409.63555 | AV29: 0 | AW29: 19657.66312 | AX29: 0
A30: sldyear | B30: =[0]!sldyear -> 0 | C30: 17906.15819 | D30: 0 | E30: 20952.28197 | F30: 0 | G30: 19395.26243 | H30: 0 | I30: 18831.97415 | J30: 0 | K30: 20453.20003 | L30: 0 | M30: 19852.38644 | N30: 0 | O30: 22231.23572 | P30: 0 | Q30: 22047.96157 | R30: 0 | S30: 17499.94257 | T30: 0 | U30: 17742.59924 | V30: 0 | W30: 20261.18224 | X30: 0 | Y30: 18053.45982 | Z30: 0 | AA30: 17746.20586 | AB30: 0 | AC30: 18131.67564 | AD30: 0 | AE30: 17233.83396 | AF30: 0 | AG30: 17525.29948 | AH30: 0 | AI30: 16297.34502 | AJ30: 0 | AK30: 17741.27039 | AL30: 0 | AM30: 17727.1746 | AN30: 0 | AO30: 17093.63346 | AP30: 0 | AQ30: 18207.07422 | AR30: 0 | AS30: 17234.95327 | AT30: 0 | AU30: 18146.88296 | AV30: 0 | AW30: 17394.91053 | AX30: 0
A31: pdyear | B31: =[0]!pdyear -> 0 | C31: 25370.45396 | D31: 0 | E31: 28416.57774 | F31: 0 | G31: 27004.51133 | H31: 0 | I31: 26296.26992 | J31: 0 | K31: 27917.4958 | L31: 0 | M31: 27316.68221 | N31: 0 | O31: 29695.53149 | P31: 0 | Q31: 29657.21047 | R31: 0 | S31: 25008.43137 | T31: 0 | U31: 25206.89501 | V31: 0 | W31: 27725.478 | X31: 0 | Y31: 25517.75559 | Z31: 0 | AA31: 25210.50163 | AB31: 0 | AC31: 25595.97141 | AD31: 0 | AE31: 24698.12973 | AF31: 0 | AG31: 24989.59525 | AH31: 0 | AI31: 23761.64078 | AJ31: 0 | AK31: 25205.56616 | AL31: 0 | AM31: 25336.4235 | AN31: 0 | AO31: 24557.92923 | AP31: 0 | AQ31: 25671.36999 | AR31: 0 | AS31: 24699.24904 | AT31: 0 | AU31: 25611.17873 | AV31: 0 | AW31: 24859.2063 | AX31: 0
A32: asdyear | B32: =[0]!asdyear -> 0 | C32: 20168.91078 | D32: 0 | E32: 23215.03456 | F32: 0 | G32: 21708.63712 | H32: 0 | I32: 21094.72674 | J32: 0 | K32: 22715.95262 | L32: 0 | M32: 22115.13903 | N32: 0 | O32: 24493.98831 | P32: 0 | Q32: 24361.33626 | R32: 0 | S32: 20604.83925 | T32: 0 | U32: 20827.4001 | V32: 0 | W32: 30744.41746 | X32: 0 | Y32: 21138.26067 | Z32: 0 | AA32: 20831.00672 | AB32: 0 | AC32: 21216.4765 | AD32: 0 | AE32: 20318.63482 | AF32: 0 | AG32: 20610.10033 | AH32: 0 | AI32: 19382.14587 | AJ32: 0 | AK32: 20826.07125 | AL32: 0 | AM32: 20877.88977 | AN32: 0 | AO32: 20178.43431 | AP32: 0 | AQ32: 21291.87508 | AR32: 0 | AS32: 20319.75412 | AT32: 0 | AU32: 21231.68381 | AV32: 0 | AW32: 20479.71139 | AX32: 0
A33: pdweekdayyear | B33: =[0]!pdweekdayyear -> 0 | C33: 0 | D33: 0 | E33: 0 | F33: 0 | G33: 0 | H33: 0 | I33: 0 | J33: 0 | K33: 0 | L33: 0 | M33: 0 | N33: 0 | O33: 0 | P33: 0 | Q33: 82909.09881 | R33: 0 | S33: 0 | T33: 0 | U33: 0 | V33: 0 | W33: 91420.61879 | X33: 0 | Y33: 0 | Z33: 0 | AA33: 0 | AB33: 0 | AC33: 0 | AD33: 0 | AE33: 0 | AF33: 0 | AG33: 0 | AH33: 0 | AI33: 0 | AJ33: 0 | AK33: 0 | AL33: 0 | AM33: 0 | AN33: 0 | AO33: 0 | AP33: 0 | AQ33: 0 | AR33: 0 | AS33: 0 | AT33: 0 | AU33: 0 | AV33: 0 | AW33: 0 | AX33: 0
A34: asdweekdayyear | B34: =[0]!asdweekdayyear -> 0 | C34: 0 | D34: 0 | E34: 0 | F34: 0 | G34: 0 | H34: 0 | I34: 0 | J34: 0 | K34: 0 | L34: 0 | M34: 0 | N34: 0 | O34: 0 | P34: 0 | Q34: 0 | R34: 0 | S34: 61253.42523 | T34: 0 | U34: 0 | V34: 0 | W34: 94439.55824 | X34: 0 | Y34: 0 | Z34: 0 | AA34: 0 | AB34: 0 | AC34: 0 | AD34: 0 | AE34: 0 | AF34: 0 | AG34: 0 | AH34: 0 | AI34: 0 | AJ34: 0 | AK34: 0 | AL34: 0 | AM34: 0 | AN34: 0 | AO34: 0 | AP34: 0 | AQ34: 0 | AR34: 0 | AS34: 0 | AT34: 0 | AU34: 0 | AV34: 0 | AW34: 0 | AX34: 0
A35: pdweekendyear | B35: =[0]!pdweekendyear -> 0 | C35: 0 | D35: 0 | E35: 0 | F35: 0 | G35: 0 | H35: 0 | I35: 0 | J35: 0 | K35: 0 | L35: 0 | M35: 0 | N35: 0 | O35: 0 | P35: 0 | Q35: 111645.3442 | R35: 0 | S35: 0 | T35: 0 | U35: 0 | V35: 0 | W35: 0 | X35: 0 | Y35: 0 | Z35: 0 | AA35: 0 | AB35: 0 | AC35: 0 | AD35: 0 | AE35: 0 | AF35: 0 | AG35: 0 | AH35: 0 | AI35: 0 | AJ35: 0 | AK35: 0 | AL35: 0 | AM35: 0 | AN35: 0 | AO35: 0 | AP35: 0 | AQ35: 0 | AR35: 0 | AS35: 0 | AT35: 0 | AU35: 0 | AV35: 0 | AW35: 0 | AX35: 0
A36: mldlastyear | B36: =[0]!mldlastyear -> 0 | C36: 13275.17304 | D36: 0 | E36: 16140.4146 | F36: 0 | G36: 15047.0409 | H36: 0 | I36: 14216.53763 | J36: 0 | K36: 16124.65215 | L36: 0 | M36: 14810.86078 | N36: 0 | O36: 17560.47856 | P36: 0 | Q36: 17412.63893 | R36: 0 | S36: 15040.5486 | T36: 0 | U36: 13643.82975 | V36: 0 | W36: 17117.6625 | X36: 0 | Y36: 13414.10196 | Z36: 0 | AA36: 13128.51833 | AB36: 0 | AC36: 13386.1438 | AD36: 0 | AE36: 12674.34041 | AF36: 0 | AG36: 13222.05135 | AH36: 0 | AI36: 11727.69721 | AJ36: 0 | AK36: 13135.81135 | AL36: 0 | AM36: 13020.51947 | AN36: 0 | AO36: 12504.68026 | AP36: 0 | AQ36: 13563.25159 | AR36: 0 | AS36: 12607.08808 | AT36: 0 | AU36: 13681.50309 | AV36: 0 | AW36: 13997.24805 | AX36: 0
A37: besdlastyear | B37: =[0]!besdlastyear -> 0 | C37: 19950.21728 | D37: 0 | E37: 22815.45884 | F37: 0 | G37: 21627.56338 | H37: 0 | I37: 20891.58187 | J37: 0 | K37: 22580.1993 | L37: 0 | M37: 21485.90502 | N37: 0 | O37: 24235.5228 | P37: 0 | Q37: 24140.58263 | R37: 0 | S37: 19628.92974 | T37: 0 | U37: 20220.71055 | V37: 0 | W37: 22449.76035 | X37: 0 | Y37: 20089.1462 | Z37: 0 | AA37: 19803.56257 | AB37: 0 | AC37: 20061.18804 | AD37: 0 | AE37: 19349.38465 | AF37: 0 | AG37: 19738.5185 | AH37: 0 | AI37: 18402.74145 | AJ37: 0 | AK37: 19810.85559 | AL37: 0 | AM37: 19748.46317 | AN37: 0 | AO37: 19179.7245 | AP37: 0 | AQ37: 20238.29583 | AR37: 0 | AS37: 19282.13232 | AT37: 0 | AU37: 20356.54732 | AV37: 0 | AW37: 20574.12885 | AX37: 0
A38: sldlastyear | B38: =[0]!sldlastyear -> 0 | C38: 17709.86818 | D38: 0 | E38: 20575.10974 | F38: 0 | G38: 19415.96685 | H38: 0 | I38: 18651.23277 | J38: 0 | K38: 20413.5198 | L38: 0 | M38: 19245.55592 | N38: 0 | O38: 21995.1737 | P38: 0 | Q38: 21933.5079 | R38: 0 | S38: 18719.03955 | T38: 0 | U38: 18013.30845 | V38: 0 | W38: 21121.4619 | X38: 0 | Y38: 17848.7971 | Z38: 0 | AA38: 17563.21347 | AB38: 0 | AC38: 17820.83894 | AD38: 0 | AE38: 17109.03555 | AF38: 0 | AG38: 17498.1694 | AH38: 0 | AI38: 16162.39235 | AJ38: 0 | AK38: 17570.50649 | AL38: 0 | AM38: 17541.38844 | AN38: 0 | AO38: 16939.3754 | AP38: 0 | AQ38: 17997.94673 | AR38: 0 | AS38: 17041.78322 | AT38: 0 | AU38: 18116.19823 | AV38: 0 | AW38: 18366.72675 | AX38: 0
A39: pdlastyear | B39: =[0]!pdlastyear -> 0 | C39: 25100.26003 | D39: 0 | E39: 27965.50159 | F39: 0 | G39: 26945.78699 | H39: 0 | I39: 26041.62462 | J39: 0 | K39: 27632.66671 | L39: 0 | M39: 26635.94776 | N39: 0 | O39: 29385.56555 | P39: 0 | Q39: 29467.4177 | R39: 0 | S39: 24853.5495 | T39: 0 | U39: 25295.0259 | V39: 0 | W39: 27794.4207 | X39: 0 | Y39: 25239.18895 | Z39: 0 | AA39: 24953.60532 | AB39: 0 | AC39: 25211.23079 | AD39: 0 | AE39: 24499.4274 | AF39: 0 | AG39: 24888.56125 | AH39: 0 | AI39: 23552.7842 | AJ39: 0 | AK39: 24960.89834 | AL39: 0 | AM39: 25075.29824 | AN39: 0 | AO39: 24329.76725 | AP39: 0 | AQ39: 25388.33858 | AR39: 0 | AS39: 24432.17507 | AT39: 0 | AU39: 25506.59007 | AV39: 0 | AW39: 25648.4442 | AX39: 0
A40: asdlastyear | B40: =[0]!asdlastyear -> 0 | C40: 19950.21728 | D40: 0 | E40: 22815.45884 | F40: 0 | G40: 21702.34718 | H40: 0 | I40: 20891.58187 | J40: 0 | K40: 22580.1993 | L40: 0 | M40: 21485.90502 | N40: 0 | O40: 24235.5228 | P40: 0 | Q40: 24223.9779 | R40: 0 | S40: 21267.8904 | T40: 0 | U40: 21022.6503 | V40: 0 | W40: 30600.9837 | X40: 0 | Y40: 20903.05537 | Z40: 0 | AA40: 20617.47174 | AB40: 0 | AC40: 20875.09721 | AD40: 0 | AE40: 20163.29382 | AF40: 0 | AG40: 20552.42767 | AH40: 0 | AI40: 19216.65062 | AJ40: 0 | AK40: 20624.76476 | AL40: 0 | AM40: 20660.90841 | AN40: 0 | AO40: 19993.63367 | AP40: 0 | AQ40: 21052.205 | AR40: 0 | AS40: 20096.04149 | AT40: 0 | AU40: 21170.4565 | AV40: 0 | AW40: 21376.0686 | AX40: 0
A41: pdweekdaylastyear | B41: =[0]!pdweekdaylastyear -> 0 | C41: 0 | D41: 0 | E41: 0 | F41: 0 | G41: 0 | H41: 0 | I41: 0 | J41: 0 | K41: 0 | L41: 0 | M41: 0 | N41: 0 | O41: 0 | P41: 0 | Q41: 82120.97456 | R41: 0 | S41: 0 | T41: 0 | U41: 0 | V41: 0 | W41: 90451.56691 | X41: 0 | Y41: 0 | Z41: 0 | AA41: 0 | AB41: 0 | AC41: 0 | AD41: 0 | AE41: 0 | AF41: 0 | AG41: 0 | AH41: 0 | AI41: 0 | AJ41: 0 | AK41: 0 | AL41: 0 | AM41: 0 | AN41: 0 | AO41: 0 | AP41: 0 | AQ41: 0 | AR41: 0 | AS41: 0 | AT41: 0 | AU41: 0 | AV41: 0 | AW41: 0 | AX41: 0
A42: asdweekdaylastyear | B42: =[0]!asdweekdaylastyear -> 0 | C42: 0 | D42: 0 | E42: 0 | F42: 0 | G42: 0 | H42: 0 | I42: 0 | J42: 0 | K42: 0 | L42: 0 | M42: 0 | N42: 0 | O42: 0 | P42: 0 | Q42: 0 | R42: 0 | S42: 61880.6439 | T42: 0 | U42: 0 | V42: 0 | W42: 93440.61588 | X42: 0 | Y42: 0 | Z42: 0 | AA42: 0 | AB42: 0 | AC42: 0 | AD42: 0 | AE42: 0 | AF42: 0 | AG42: 0 | AH42: 0 | AI42: 0 | AJ42: 0 | AK42: 0 | AL42: 0 | AM42: 0 | AN42: 0 | AO42: 0 | AP42: 0 | AQ42: 0 | AR42: 0 | AS42: 0 | AT42: 0 | AU42: 0 | AV42: 0 | AW42: 0 | AX42: 0
A43: pdweekendlastyear | B43: =[0]!pdweekendlastyear -> 0 | C43: 0 | D43: 0 | E43: 0 | F43: 0 | G43: 0 | H43: 0 | I43: 0 | J43: 0 | K43: 0 | L43: 0 | M43: 0 | N43: 0 | O43: 0 | P43: 0 | Q43: 110527.9539 | R43: 0 | S43: 0 | T43: 0 | U43: 0 | V43: 0 | W43: 0 | X43: 0 | Y43: 0 | Z43: 0 | AA43: 0 | AB43: 0 | AC43: 0 | AD43: 0 | AE43: 0 | AF43: 0 | AG43: 0 | AH43: 0 | AI43: 0 | AJ43: 0 | AK43: 0 | AL43: 0 | AM43: 0 | AN43: 0 | AO43: 0 | AP43: 0 | AQ43: 0 | AR43: 0 | AS43: 0 | AT43: 0 | AU43: 0 | AV43: 0 | AW43: 0 | AX43: 0
A44: MLD&SLCN | B44: =mldfinal -> 0 | C44: 13427.1161 | D44: 0 | E44: 16473.23988 | F44: 0 | G44: 15047.0409 | H44: 0 | I44: 14352.93206 | J44: 0 | K44: 16124.65215 | L44: 0 | M44: 15373.34435 | N44: 0 | O44: 17752.19363 | P44: 0 | Q44: 17481.8839 | R44: 0 | S44: 15040.5486 | T44: 0 | U44: 13643.82975 | V44: 0 | W44: 17117.6625 | X44: 0 | Y44: 13574.41773 | Z44: 0 | AA44: 13267.16377 | AB44: 0 | AC44: 13652.63355 | AD44: 0 | AE44: 12754.79187 | AF44: 0 | AG44: 13222.05135 | AH44: 0 | AI44: 11818.30292 | AJ44: 0 | AK44: 13262.2283 | AL44: 0 | AM44: 13161.09694 | AN44: 0 | AO44: 12614.59137 | AP44: 0 | AQ44: 13728.03213 | AR44: 0 | AS44: 12755.91118 | AT44: 0 | AU44: 13681.50309 | AV44: 0 | AW44: 13997.24805 | AX44: 0
A45: BESD | B45: =besdfinal -> 0 | C45: 20168.91078 | D45: 0 | E45: 23215.03456 | F45: 0 | G45: 21633.10548 | H45: 0 | I45: 21094.72674 | J45: 0 | K45: 22715.95262 | L45: 0 | M45: 22115.13903 | N45: 0 | O45: 24493.98831 | P45: 0 | Q45: 24277.10704 | R45: 0 | S45: 19752.44909 | T45: 0 | U45: 20220.71055 | V45: 0 | W45: 22523.93483 | X45: 0 | Y45: 20316.21241 | Z45: 0 | AA45: 20008.95845 | AB45: 0 | AC45: 20394.42823 | AD45: 0 | AE45: 19496.58655 | AF45: 0 | AG45: 19788.05207 | AH45: 0 | AI45: 18560.09761 | AJ45: 0 | AK45: 20004.02298 | AL45: 0 | AM45: 19956.32008 | AN45: 0 | AO45: 19356.38605 | AP45: 0 | AQ45: 20469.82681 | AR45: 0 | AS45: 19497.70586 | AT45: 0 | AU45: 20409.63555 | AV45: 0 | AW45: 20574.12885 | AX45: 0
A46: SLD | B46: =sldfinal -> 0 | C46: 17906.15819 | D46: 0 | E46: 20952.28197 | F46: 0 | G46: 19415.96685 | H46: 0 | I46: 18831.97415 | J46: 0 | K46: 20453.20003 | L46: 0 | M46: 19852.38644 | N46: 0 | O46: 22231.23572 | P46: 0 | Q46: 22047.96157 | R46: 0 | S46: 18719.03955 | T46: 0 | U46: 18013.30845 | V46: 0 | W46: 21121.4619 | X46: 0 | Y46: 18053.45982 | Z46: 0 | AA46: 17746.20586 | AB46: 0 | AC46: 18131.67564 | AD46: 0 | AE46: 17233.83396 | AF46: 0 | AG46: 17525.29948 | AH46: 0 | AI46: 16297.34502 | AJ46: 0 | AK46: 17741.27039 | AL46: 0 | AM46: 17727.1746 | AN46: 0 | AO46: 17093.63346 | AP46: 0 | AQ46: 18207.07422 | AR46: 0 | AS46: 17234.95327 | AT46: 0 | AU46: 18146.88296 | AV46: 0 | AW46: 18366.72675 | AX46: 0
A47: PD&PMLD | B47: =pdfinal -> 0 | C47: 25370.45396 | D47: 0 | E47: 28416.57774 | F47: 0 | G47: 27004.51133 | H47: 0 | I47: 26296.26992 | J47: 0 | K47: 27917.4958 | L47: 0 | M47: 27316.68221 | N47: 0 | O47: 29695.53149 | P47: 0 | Q47: 29657.21047 | R47: 0 | S47: 25008.43137 | T47: 0 | U47: 25295.0259 | V47: 0 | W47: 27794.4207 | X47: 0 | Y47: 25517.75559 | Z47: 0 | AA47: 25210.50163 | AB47: 0 | AC47: 25595.97141 | AD47: 0 | AE47: 24698.12973 | AF47: 0 | AG47: 24989.59525 | AH47: 0 | AI47: 23761.64078 | AJ47: 0 | AK47: 25205.56616 | AL47: 0 | AM47: 25336.4235 | AN47: 0 | AO47: 24557.92923 | AP47: 0 | AQ47: 25671.36999 | AR47: 0 | AS47: 24699.24904 | AT47: 0 | AU47: 25611.17873 | AV47: 0 | AW47: 25648.4442 | AX47: 0
A48: ASD | B48: =asdfinal -> 0 | C48: 20168.91078 | D48: 0 | E48: 23215.03456 | F48: 0 | G48: 21708.63712 | H48: 0 | I48: 21094.72674 | J48: 0 | K48: 22715.95262 | L48: 0 | M48: 22115.13903 | N48: 0 | O48: 24493.98831 | P48: 0 | Q48: 24361.33626 | R48: 0 | S48: 21267.8904 | T48: 0 | U48: 21022.6503 | V48: 0 | W48: 30744.41746 | X48: 0 | Y48: 21138.26067 | Z48: 0 | AA48: 20831.00672 | AB48: 0 | AC48: 21216.4765 | AD48: 0 | AE48: 20318.63482 | AF48: 0 | AG48: 20610.10033 | AH48: 0 | AI48: 19382.14587 | AJ48: 0 | AK48: 20826.07125 | AL48: 0 | AM48: 20877.88977 | AN48: 0 | AO48: 20178.43431 | AP48: 0 | AQ48: 21291.87508 | AR48: 0 | AS48: 20319.75412 | AT48: 0 | AU48: 21231.68381 | AV48: 0 | AW48: 21376.0686 | AX48: 0
A49: WeekdayPD&PMLD | B49: =pd5final -> 0 | C49: 0 | D49: 0 | E49: 0 | F49: 0 | G49: 0 | H49: 0 | I49: 0 | J49: 0 | K49: 0 | L49: 0 | M49: 0 | N49: 0 | O49: 0 | P49: 0 | Q49: 82909.09881 | R49: 0 | S49: 0 | T49: 0 | U49: 0 | V49: 0 | W49: 91420.61879 | X49: 0 | Y49: 0 | Z49: 0 | AA49: 0 | AB49: 0 | AC49: 0 | AD49: 0 | AE49: 0 | AF49: 0 | AG49: 0 | AH49: 0 | AI49: 0 | AJ49: 0 | AK49: 0 | AL49: 0 | AM49: 0 | AN49: 0 | AO49: 0 | AP49: 0 | AQ49: 0 | AR49: 0 | AS49: 0 | AT49: 0 | AU49: 0 | AV49: 0 | AW49: 0 | AX49: 0
A50: WeekdayASD | B50: =asd5final -> 0 | C50: 0 | D50: 0 | E50: 0 | F50: 0 | G50: 0 | H50: 0 | I50: 0 | J50: 0 | K50: 0 | L50: 0 | M50: 0 | N50: 0 | O50: 0 | P50: 0 | Q50: 0 | R50: 0 | S50: 61880.6439 | T50: 0 | U50: 0 | V50: 0 | W50: 94439.55824 | X50: 0 | Y50: 0 | Z50: 0 | AA50: 0 | AB50: 0 | AC50: 0 | AD50: 0 | AE50: 0 | AF50: 0 | AG50: 0 | AH50: 0 | AI50: 0 | AJ50: 0 | AK50: 0 | AL50: 0 | AM50: 0 | AN50: 0 | AO50: 0 | AP50: 0 | AQ50: 0 | AR50: 0 | AS50: 0 | AT50: 0 | AU50: 0 | AV50: 0 | AW50: 0 | AX50: 0
A51: WeekendPD&PMLD | B51: =pd7final -> 0 | C51: 0 | D51: 0 | E51: 0 | F51: 0 | G51: 0 | H51: 0 | I51: 0 | J51: 0 | K51: 0 | L51: 0 | M51: 0 | N51: 0 | O51: 0 | P51: 0 | Q51: 111645.3442 | R51: 0 | S51: 0 | T51: 0 | U51: 0 | V51: 0 | W51: 0 | X51: 0 | Y51: 0 | Z51: 0 | AA51: 0 | AB51: 0 | AC51: 0 | AD51: 0 | AE51: 0 | AF51: 0 | AG51: 0 | AH51: 0 | AI51: 0 | AJ51: 0 | AK51: 0 | AL51: 0 | AM51: 0 | AN51: 0 | AO51: 0 | AP51: 0 | AQ51: 0 | AR51: 0 | AS51: 0 | AT51: 0 | AU51: 0 | AV51: 0 | AW51: 0 | AX51: 0
A52: integrity | B52: =[0]!integrity -> ERROR | C52: OK | D52: =IF(C52="OK",0,1) -> 0 | E52: OK | F52: =IF(E52="OK",0,1) -> 0 | G52: OK | H52: =IF(G52="OK",0,1) -> 0 | I52: OK | J52: =IF(I52="OK",0,1) -> 0 | K52: OK | L52: =IF(K52="OK",0,1) -> 0 | M52: OK | N52: =IF(M52="OK",0,1) -> 0 | O52: OK | P52: =IF(O52="OK",0,1) -> 0 | Q52: OK | R52: =IF(Q52="OK",0,1) -> 0 | S52: OK | T52: =IF(S52="OK",0,1) -> 0 | U52: OK | V52: =IF(U52="OK",0,1) -> 0 | W52: OK | X52: =IF(W52="OK",0,1) -> 0 | Y52: OK | Z52: =IF(Y52="OK",0,1) -> 0 | AA52: OK | AB52: =IF(AA52="OK",0,1) -> 0 | AC52: OK | AD52: =IF(AC52="OK",0,1) -> 0 | AE52: OK | AF52: =IF(AE52="OK",0,1) -> 0 | AG52: OK | AH52: =IF(AG52="OK",0,1) -> 0 | AI52: OK | AJ52: =IF(AI52="OK",0,1) -> 0 | AK52: OK | AL52: =IF(AK52="OK",0,1) -> 0 | AM52: OK | AN52: =IF(AM52="OK",0,1) -> 0 | AO52: OK | AP52: =IF(AO52="OK",0,1) -> 0 | AQ52: OK | AR52: =IF(AQ52="OK",0,1) -> 0 | AS52: OK | AT52: =IF(AS52="OK",0,1) -> 0 | AU52: OK | AV52: =IF(AU52="OK",0,1) -> 0 | AW52: OK | AX52: =IF(AW52="OK",0,1) -> 0
A53: nurseryfte | B53: =nurseryfte -> 0 | C53: 0 | D53: 0 | E53: 0 | F53: 0 | G53: 0 | H53: 0 | I53: 0 | J53: 0 | K53: 0 | L53: 0 | M53: 0 | N53: 0 | O53: 0 | P53: 0 | Q53: 0 | R53: 0 | S53: 0 | T53: 0 | U53: 0 | V53: 0 | W53: 0 | X53: 0 | Y53: 0 | Z53: 0 | AA53: 6 | AB53: 0 | AC53: 10 | AD53: 0 | AE53: 10 | AF53: 0 | AG53: 8 | AH53: 0 | AI53: 15 | AJ53: 0 | AK53: 6 | AL53: 0 | AM53: 12 | AN53: 0 | AO53: 5 | AP53: 0 | AQ53: 12 | AR53: 0 | AS53: 6 | AT53: 0 | AU53: 0 | AV53: 0 | AW53: 0 | AX53: 0
A54: nurserycash | B54: =nurserycash -> 0 | C54: 0 | D54: 0 | E54: 0 | F54: 0 | G54: 0 | H54: 0 | I54: 0 | J54: 0 | K54: 0 | L54: 0 | M54: 0 | N54: 0 | O54: 0 | P54: 0 | Q54: 0 | R54: 0 | S54: 0 | T54: 0 | U54: 0 | V54: 0 | W54: 0 | X54: 0 | Y54: 0 | Z54: 0 | AA54: 122207 | AB54: 0 | AC54: 223628 | AD54: 0 | AE54: 223628 | AF54: 0 | AG54: 142991 | AH54: 0 | AI54: 275590 | AJ54: 0 | AK54: 122207 | AL54: 0 | AM54: 244413 | AN54: 0 | AO54: 111814 | AP54: 0 | AQ54: 244413 | AR54: 0 | AS54: 122207 | AT54: 0 | AU54: 0 | AV54: 0 | AW54: 0 | AX54: 0
